{"text_format":"1","workbook":"xlsx","n_sheets":5,"sheets":["Instruccions - Instrucciones","Dades i com... - Datos y com...","Pressupost - Pressupuesto","Detall - Detalle","Llista desplegable"],"not_rendered":{"charts":0,"images":2,"macros":1,"external_links":0,"defined_names":11,"comments":1,"pivot_tables":0},"unopened":[],"bounds":{"document_bytes":16777216,"sheet_cells":100000,"rows_first":2000,"rows_last":500,"rows_between":2000,"halvings":0,"cell_chars":16384,"cell_head_chars":4096},"cells_cut":0,"cells_raw":0,"read":"whole","date_system":"1900"}

{"sheet":"Instruccions - Instrucciones","index":0,"n_rows":26,"n_cols":7,"rows_kept":26,"cut":false,"hidden":false,"merged":[]}
[]
[null,"Instruccions d'ús del formulari",null,null,null,null,"Instrucciones de uso del formulario"]
[]
[null,"Aquest formulari de pressupost consta de 3 pestanyes:",null,null,null,null,"Este formulario de presupuesto consta de 3 pestañas:"]
[null,"1. Dades i comprovacions: s'introduiran les dades generals de la intervenció i també inclourà les verificacions per tal de comprovar que s'ha emplenat correctament.",null,null,null,null,"1. Datos y comprobaciones: se introducirán los datos generales de la intervención y también incluirá las verificaciones para comprobar que se ha rellenado correctamente."]
[null,"2. Detall: S'inclouran les dades relatives a les despeses de la intervenció.",null,null,null,null,"2. Detalle: Se incluirán los datos relativos a los gastos de la intervención."]
[null,"3. Pressupost: És la visualització en format compte de resultats de les despeses que s'han introduït a la pestanya detall de despeses.",null,null,null,null,"3. Presupuesto: Es la visualización en formato cuenta de resultados de los gastos que se han introducido en la pestaña detalle de gastos."]
[]
[null,"Com emplenar el formulari de pressupost?",null,null,null,null,"Como rellenar el formulario de presupuesto?"]
[null,"Pas 1: Introduir la informació de la intervenció a la pestanya \"Dades i  comprovacions\"",null,null,null,null,"Paso 1: Introducir la información de la intervención en la pestaña \"Datos y comprobaciones\""]
[null,"En primer lloc, introduirem tota la informació relativa a la intervenció tipus a la pestanya \"Dades i comprovacions\". Els camps a emplenar estan ombrejats en gris.",null,null,null,null,"En primer lugar, introduciremos toda la información relativa a la intervención tipo en la pestaña Datos y comprobaciones. Los campos a llenar están sombreados en gris."]
[null,"Aquest pas és molt important i s'ha d'emplenar tota la informació a l'inici ja que, posteriorment, el que haurem introduït aquí alimentarà la informació a introduir en la pestanya \"detall despesa\".",null,null,null,null,"Este paso es muy importante y debe rellenarse toda la información al inicio, ya que posteriormente lo que habremos introducido aquí, alimentará la información a introducir en la pestaña \"detalle gasto\"."]
[null,"Pas 2: Introducció de les despeses a la pestanya \"Detall despeses\"",null,null,null,null,"Paso 2: Introducción de los gastos en la pestaña \"Detalle gastos\""]
[null,"A l'apartat \"detall de despeses\" anirem introduint les diferents despeses de la intervenció en funció de la partida pressupostària detallada a les bases a la qual fan referència.",null,null,null,null,"En el apartado \"detalle de gastos\" iremos introduciendo los diferentes gastos de la intervención en función de la partida presupuestaria detallada en las bases a las que se refieren."]
[null,"Els camps a emplenar són els que estan ombrejats en color gris.",null,null,null,null,"Los campos a rellenar son los que están sombreados en color gris."]
[null,"El camp valorització només l'emplenarem amb \"Sí\" en cas que es tracti d'una despesa valoritzada, en cas contrari, el deixarem en blanc.",null,null,null,null,"El campo valorización sólo lo llenaremos con \"Sí\" en caso de que se trate de un gasto valorizado, de lo contrario, lo dejaremos en blanco."]
[null,"No caldrà emplenar les cel·les que canviïn a aquest format:",null,null,null,null,"No se tendrá que rellenar nada en las celdas que cambien a este formato:"]
[null,"A les columnes que estan sota l'apartat \"filtres\" podrem filtrar i exportar la informació per treballar-la si ens fes falta.",null,null,null,null,"En las columnas que están debajo del apartado \"filtros\" podremos filtrar y exportar la información para trabajarla si nos hiciera falta."]
[]
[null,"Pas 3: Comprovació d'errors",null,null,null,null,"Paso 3: Comprobación de errores"]
[null,"Comprovar a la pestanya \"Dades i comprovacions\" que no hi ha cap cel·la marcada en vermell.",null,null,null,null,"Compruebe en la pestaña \"Datos y comprobaciones\" que no hay ningún celda marcada el rojo."]
[]
[null,"A tenir en compte en l'apartat \"Detall de despeses\":",null,null,null,null,"A tener en cuenta en el apartado \"Detalle de gastos\":"]
[null,"Quan afegim files, sempre s'afegeixen al final",null,null,null,null,"Cuando añadimos filas, siempre se añaden al final"]
[null,"En cas que haguem oblidat o vulguem imputar una despesa a una activitat addicional, haurem d'eliminar totes les línies que fan referencia a aquesta despesa i tornar-la a crear de nou a l'última fila buida, ja que no es permet inserir files.",null,null,null,null,"En caso de que hayamos olvidado o queramos imputar un gasto a una actividad adicional, deberemos eliminar todas las líneas que hacen referencia a este gasto y volver a crearlo de nuevo en la última fila vacía, ya que no se permite insertar filas."]
[null,"No s'han d'eliminar mai totes les files, ja que és bloquejarà el programa.",null,null,null,null,"Nunca se deben eliminar todas las filas, ya que se bloqueará el programa."]

{"sheet":"Dades i com... - Datos y com...","index":1,"n_rows":58,"n_cols":18,"rows_kept":58,"cut":false,"hidden":false,"merged":[[49,7,49,8],[47,7,47,8],[48,7,48,8],[22,3,22,6],[56,7,57,10],[28,4,28,10],[6,3,6,10],[26,3,26,10],[13,3,13,5],[34,6,34,12],[9,3,9,9],[17,3,17,5],[29,4,29,6],[30,4,30,6],[12,7,12,8],[13,7,13,8],[14,7,14,8],[15,7,15,8],[20,3,20,6],[45,14,45,17],[43,14,43,17],[44,14,44,17],[21,3,21,6],[45,7,45,10],[34,1,34,5]]}
[]
[null,"Convocatòria convenis AH 2024 / Convocatoria convenios AH 2024"]
[null,"Formulari pressupost de la intervenció tipus 1 / Formulario de presupuesto de la intervención tipo 1"]
[]
[]
[]
[null,null,null,"DADES GENERALS / DATOS GENERALES"]
[]
[null,null,null,"Nom del conveni / Nombre del convenio:"]
[]
[]
[null,null,null,null,null,null,null,"Altres finançadors públics / Otros financiadores públicos:",null,"Import / Importe:"]
[null,null,null,"Títol de la intervenció tipus / Título de la intervención tipo"]
[]
[]
[null,null,null,null,null,null,null,null,null,{"$f":"SUM(J13:J15)","v":0},{"$f":"+'Pressupost - Pressupuesto'!D28","v":0}]
[null,null,null,"Entitat beneficiària / Entidad beneficiaria:"]
[]
[]
[null,null,null,"Sòcia local / Socia Local"]
[null,null,1]
[null,null,2]
[null,null,3]
[]
[]
[]
[null,null,null,"RESUM ECONÒMIC DE LA INTERVENCIÓ / RESUMEN ECONÓMICO DE LA INTERVENCIÓN"]
[]
[null,null,null,null,"SOL·LICITAT ACCD / SOLICITADO ACCD"]
[null,null,null,"TOTAL DESPESES / TOTAL GASTOS","INDIRECTES / INDIRECTOS",null,null,"DIRECTES / DIRECTOS","SUBVENCIÓ SOLICITADA","CAPÍTOL IV","CAPÍTOL VII"]
[null,null,null,{"$f":"+'Pressupost - Pressupuesto'!B28","v":0},{"$f":"+'Pressupost - Pressupuesto'!C27","v":0},null,null,{"$f":"+'Pressupost - Pressupuesto'!C26","v":0},{"$f":"+'Pressupost - Pressupuesto'!C28","v":0},{"$f":"+'Pressupost - Pressupuesto'!C4+E31","v":0},{"$f":"+'Pressupost - Pressupuesto'!C24","v":0}]
[]
[]
[]
[null,"ACTIVITATS / ACTIVIDADES ",null,null,null,null,"COMPROVACIONS / COMPROBACIONES"]
[]
[null,1,null,"Despeses transversals","% imputació despeses transversals"]
[null,2,"Activitat 1","Activitat 1",null,null,null,"Pressupost total / Presupuesto total:",null,{"$f":"D31","v":0}]
[null,{"$f":"+IF(D39<>\"\",B38+1,\"\")","v":""},"Activitat 2",null,null,null,null,"Finançament ACCD / Financiación ACCD:",null,{"$f":"+I31","v":0}]
[null,{"$f":"+IF(D40<>\"\",B39+1,\"\")","v":""},"Activitat 3",null,null,null,null,"% Finançament ACCD / % Financiación ACCD:",null,{"$f":"IFERROR(J39/J38,0)","v":0},"Màxim 90% del total"]
[null,"","Activitat 4"]
[null,"","Activitat 5",null,null,null,null,"Màxim","Import","Mínim"]
[null,"","Activitat 6",null,null,null,null,290000.01,{"$f":"+I31","v":0},149999.99]
[null,"","Activitat 7",null,null,null,null,null,null,null,null,null,null,null,"Càlculs auxiliars COMPROVACIONS / COMPROBACIONES"]
[null,"","Activitat 8",null,null,null,null,null,null,null,null,null,null,null,"Intervenció tipus "]
[null,"","Activitat 9",null,null,null,null,"Comprovacions de pressupost / Comprobaciones presupuesto",null,null,null,null,null,null,"Comprovacions de pressupost / Comprobaciones pressupuesto"]
[null,"","Activitat 10",null,null,null,null,"DESPESES INDIRECTES / GASTOS INDIRECTOS",null,"Màx 12%",{"$f":"IFERROR(+R47/$I$31,0)","v":0},null,null,null,"DESPESES INDIRECTES / GASTOS INDIRECTOS",null,"Màx 12%",{"$f":"+'Pressupost - Pressupuesto'!B27","v":0}]
[null,"","Activitat 11",null,null,null,null,"a.10) Identificació i formulació",null,"Máx 10%",{"$f":"IFERROR(+R48/$I$31,0)","v":0},null,null,null,"a.10) Identificació i formulació",null,"Máx 10%",{"$f":"+'Pressupost - Pressupuesto'!C17","v":0}]
[null,"","Activitat 12",null,null,null,null,"a.16) Imprevistos",null,"Màx 5%",{"$f":"IFERROR(+R49/$I$31,0)","v":0},null,null,null,"a.16) Imprevistos",null,"Màx 5%",{"$f":"+'Pressupost - Pressupuesto'!C23","v":0}]
[null,"","Activitat 13",null,null,null,null,"a12 Avaluació / Evaluación",null,"Max 3%",{"$f":"IFERROR(+R50/$I$31,0)","v":0},null,null,null,"a12 Avaluació / Evaluación",null,"Max 3%",{"$f":"+'Pressupost - Pressupuesto'!C18","v":0}]
[null,"","Activitat 14",null,null,null,null,"B1.Béns inventariables",null,"Max 10 %",{"$f":"IFERROR(+R51/$I$31,0)","v":0},null,null,null,"B1.Béns inventeriables",null,"Max 10 %",{"$f":"+'Pressupost - Pressupuesto'!C25","v":0}]
[null,"","Activitat 15"]
[null,"","Activitat 16"]
[null,"","Activitat 17"]
[null,"","Activitat 18",null,null,null,null,"Altres comprovacions a tenir en compte:"]
[null,"","Activitat 19",null,null,null,null,"Salaris: El salari brut mensual màxim serà de 3.500 euros prorratejat en 14 pagues."]
[null,"","Activitat 20",null,null,null,null,"Repartiment despeses indirectes: El repartiment de les despeses indirectes entre l'entitat beneficiària de la subvenció i la sòcia local haurà de ser proporcional a la quantia de la subvenció implementada per cadascuna d'elles."]
[null,null,null,null,{"$f":"SUM(E38:E57)","v":0}]

{"sheet":"Pressupost - Pressupuesto","index":2,"n_rows":58,"n_cols":22,"rows_kept":58,"cut":false,"hidden":false,"merged":[[1,2,1,4],[1,5,1,6]]}
[]
["PRESSUPOST GLOBAL",null,"DISTRIBUCIÓ PRESSUPOST PER ENTITAT FINANÇADORA",null,null,"DISTRIBUCIÓ PRESSUPOST PER ENTITAT EXECUTORA"]
[null,"TOTAL PROJECTE","ACCD","ALTRES FINANÇADORS","BENEFICIÀRIA","BENEFICIÀRIA","SÒCIA_LOCAL"]
["DESPESES DIRECTES CORRENTS (Capítol IV) / GASTOS DIRECTOS CORRIENTES (Capítulo IV)",{"$f":"SUM(C4:E4)","v":0},{"$f":"+SUM(C5,C9:C23)","v":0},{"$f":"+SUM(D5,D9:D23)","v":0},{"$f":"+SUM(E5,E9:E23)","v":0},{"$f":"+SUM(F5,F9:F23)","v":0},{"$f":"+SUM(G5,G9:G23)","v":0}]
["a1. Remuneració  personal assalariat / Remuneración personal asalariado",{"$f":"SUM(C5:E5)","v":0},{"$f":"SUM(C6:C8)","v":0},{"$f":"SUM(D6:D8)","v":0},{"$f":"SUM(E6:E8)","v":0},{"$f":"SUM(F6:F8)","v":0},{"$f":"SUM(G6:G8)","v":0}]
["a1.1 Personal assalariat local / Personal asalariado local",0,{"$f":"+SUMIFS('Detall - Detalle'!V:V,'Detall - Detalle'!Z:Z,'Pressupost - Pressupuesto'!A6)","v":0},{"$f":"+SUMIFS('Detall - Detalle'!W:W,'Detall - Detalle'!Z:Z,'Pressupost - Pressupuesto'!A6)","v":0},{"$f":"+SUMIFS('Detall - Detalle'!X:X,'Detall - Detalle'!Z:Z,'Pressupost - Pressupuesto'!A6)","v":0},{"$f":"SUMIFS('Detall - Detalle'!$U:$U,'Detall - Detalle'!$Z:$Z,'Pressupost - Pressupuesto'!$A6,'Detall - Detalle'!$Y:$Y,F$3)","v":0},{"$f":"SUMIFS('Detall - Detalle'!$U:$U,'Detall - Detalle'!$Z:$Z,'Pressupost - Pressupuesto'!$A6,'Detall - Detalle'!$Y:$Y,G$3)","v":0}]
["a1.2 Personal assalariat expatriat / Personal asalariado expatriado",0,{"$f":"+SUMIFS('Detall - Detalle'!V:V,'Detall - Detalle'!Z:Z,'Pressupost - Pressupuesto'!A7)","v":0},{"$f":"+SUMIFS('Detall - Detalle'!W:W,'Detall - Detalle'!Z:Z,'Pressupost - Pressupuesto'!A7)","v":0},{"$f":"+SUMIFS('Detall - Detalle'!X:X,'Detall - Detalle'!Z:Z,'Pressupost - Pressupuesto'!A7)","v":0},{"$f":"SUMIFS('Detall - Detalle'!$U:$U,'Detall - Detalle'!$Z:$Z,'Pressupost - Pressupuesto'!$A7,'Detall - Detalle'!$Y:$Y,F$3)","v":0},{"$f":"SUMIFS('Detall - Detalle'!$U:$U,'Detall - Detalle'!$Z:$Z,'Pressupost - Pressupuesto'!$A7,'Detall - Detalle'!$Y:$Y,G$3)","v":0}]
["a1.3 Personal assalariat a Catalunya / Personal asalariado Cataluña",0,{"$f":"+SUMIFS('Detall - Detalle'!V:V,'Detall - Detalle'!Z:Z,'Pressupost - Pressupuesto'!A8)","v":0},{"$f":"+SUMIFS('Detall - Detalle'!W:W,'Detall - Detalle'!Z:Z,'Pressupost - Pressupuesto'!A8)","v":0},{"$f":"+SUMIFS('Detall - Detalle'!X:X,'Detall - Detalle'!Z:Z,'Pressupost - Pressupuesto'!A8)","v":0},{"$f":"SUMIFS('Detall - Detalle'!$U:$U,'Detall - Detalle'!$Z:$Z,'Pressupost - Pressupuesto'!$A8,'Detall - Detalle'!$Y:$Y,F$3)","v":0},{"$f":"SUMIFS('Detall - Detalle'!$U:$U,'Detall - Detalle'!$Z:$Z,'Pressupost - Pressupuesto'!$A8,'Detall - Detalle'!$Y:$Y,G$3)","v":0}]
["a2 Lloguers / Alquileres",0,{"$f":"+SUMIFS('Detall - Detalle'!V:V,'Detall - Detalle'!Z:Z,'Pressupost - Pressupuesto'!A9)","v":0},{"$f":"+SUMIFS('Detall - Detalle'!W:W,'Detall - Detalle'!Z:Z,'Pressupost - Pressupuesto'!A9)","v":0},{"$f":"+SUMIFS('Detall - Detalle'!X:X,'Detall - Detalle'!Z:Z,'Pressupost - Pressupuesto'!A9)","v":0},{"$f":"SUMIFS('Detall - Detalle'!$U:$U,'Detall - Detalle'!$Z:$Z,'Pressupost - Pressupuesto'!$A9,'Detall - Detalle'!$Y:$Y,F$3)","v":0},{"$f":"SUMIFS('Detall - Detalle'!$U:$U,'Detall - Detalle'!$Z:$Z,'Pressupost - Pressupuesto'!$A9,'Detall - Detalle'!$Y:$Y,G$3)","v":0}]
["a3 Manteniment, conservació i reparació / Mantenimiento, conservación y reparación",0,{"$f":"+SUMIFS('Detall - Detalle'!V:V,'Detall - Detalle'!Z:Z,'Pressupost - Pressupuesto'!A10)","v":0},{"$f":"+SUMIFS('Detall - Detalle'!W:W,'Detall - Detalle'!Z:Z,'Pressupost - Pressupuesto'!A10)","v":0},{"$f":"+SUMIFS('Detall - Detalle'!X:X,'Detall - Detalle'!Z:Z,'Pressupost - Pressupuesto'!A10)","v":0},{"$f":"SUMIFS('Detall - Detalle'!$U:$U,'Detall - Detalle'!$Z:$Z,'Pressupost - Pressupuesto'!$A10,'Detall - Detalle'!$Y:$Y,F$3)","v":0},{"$f":"SUMIFS('Detall - Detalle'!$U:$U,'Detall - Detalle'!$Z:$Z,'Pressupost - Pressupuesto'!$A10,'Detall - Detalle'!$Y:$Y,G$3)","v":0}]
["a4 Material ordinari / Material ordinario",0,{"$f":"+SUMIFS('Detall - Detalle'!V:V,'Detall - Detalle'!Z:Z,'Pressupost - Pressupuesto'!A11)","v":0},{"$f":"+SUMIFS('Detall - Detalle'!W:W,'Detall - Detalle'!Z:Z,'Pressupost - Pressupuesto'!A11)","v":0},{"$f":"+SUMIFS('Detall - Detalle'!X:X,'Detall - Detalle'!Z:Z,'Pressupost - Pressupuesto'!A11)","v":0},{"$f":"SUMIFS('Detall - Detalle'!$U:$U,'Detall - Detalle'!$Z:$Z,'Pressupost - Pressupuesto'!$A11,'Detall - Detalle'!$Y:$Y,F$3)","v":0},{"$f":"SUMIFS('Detall - Detalle'!$U:$U,'Detall - Detalle'!$Z:$Z,'Pressupost - Pressupuesto'!$A11,'Detall - Detalle'!$Y:$Y,G$3)","v":0}]
["a5 Comunicacions, despeses postals i missatgeria / Comunicaciones, gastos postales y mensajería",{"$f":"SUM(C12:E12)","v":0},{"$f":"+SUMIFS('Detall - Detalle'!V:V,'Detall - Detalle'!Z:Z,'Pressupost - Pressupuesto'!A12)","v":0},{"$f":"+SUMIFS('Detall - Detalle'!W:W,'Detall - Detalle'!Z:Z,'Pressupost - Pressupuesto'!A12)","v":0},{"$f":"+SUMIFS('Detall - Detalle'!X:X,'Detall - Detalle'!Z:Z,'Pressupost - Pressupuesto'!A12)","v":0},{"$f":"SUMIFS('Detall - Detalle'!$U:$U,'Detall - Detalle'!$Z:$Z,'Pressupost - Pressupuesto'!$A12,'Detall - Detalle'!$Y:$Y,F$3)","v":0},{"$f":"SUMIFS('Detall - Detalle'!$U:$U,'Detall - Detalle'!$Z:$Z,'Pressupost - Pressupuesto'!$A12,'Detall - Detalle'!$Y:$Y,G$3)","v":0}]
["a6 Reunions, conferències i formacions / Reuniones, conferencias y formaciones",0,{"$f":"+SUMIFS('Detall - Detalle'!V:V,'Detall - Detalle'!Z:Z,'Pressupost - Pressupuesto'!A13)","v":0},{"$f":"+SUMIFS('Detall - Detalle'!W:W,'Detall - Detalle'!Z:Z,'Pressupost - Pressupuesto'!A13)","v":0},{"$f":"+SUMIFS('Detall - Detalle'!X:X,'Detall - Detalle'!Z:Z,'Pressupost - Pressupuesto'!A13)","v":0},{"$f":"SUMIFS('Detall - Detalle'!$U:$U,'Detall - Detalle'!$Z:$Z,'Pressupost - Pressupuesto'!$A13,'Detall - Detalle'!$Y:$Y,F$3)","v":0},{"$f":"SUMIFS('Detall - Detalle'!$U:$U,'Detall - Detalle'!$Z:$Z,'Pressupost - Pressupuesto'!$A13,'Detall - Detalle'!$Y:$Y,G$3)","v":0}]
["a7 Publicitat i difusió / Publicidad y difusión",0,{"$f":"+SUMIFS('Detall - Detalle'!V:V,'Detall - Detalle'!Z:Z,'Pressupost - Pressupuesto'!A14)","v":0},{"$f":"+SUMIFS('Detall - Detalle'!W:W,'Detall - Detalle'!Z:Z,'Pressupost - Pressupuesto'!A14)","v":0},{"$f":"+SUMIFS('Detall - Detalle'!X:X,'Detall - Detalle'!Z:Z,'Pressupost - Pressupuesto'!A14)","v":0},{"$f":"SUMIFS('Detall - Detalle'!$U:$U,'Detall - Detalle'!$Z:$Z,'Pressupost - Pressupuesto'!$A14,'Detall - Detalle'!$Y:$Y,F$3)","v":0},{"$f":"SUMIFS('Detall - Detalle'!$U:$U,'Detall - Detalle'!$Z:$Z,'Pressupost - Pressupuesto'!$A14,'Detall - Detalle'!$Y:$Y,G$3)","v":0}]
["a8 Publicacions / Publicaciones",0,{"$f":"+SUMIFS('Detall - Detalle'!V:V,'Detall - Detalle'!Z:Z,'Pressupost - Pressupuesto'!A15)","v":0},{"$f":"+SUMIFS('Detall - Detalle'!W:W,'Detall - Detalle'!Z:Z,'Pressupost - Pressupuesto'!A15)","v":0},{"$f":"+SUMIFS('Detall - Detalle'!X:X,'Detall - Detalle'!Z:Z,'Pressupost - Pressupuesto'!A15)","v":0},{"$f":"SUMIFS('Detall - Detalle'!$U:$U,'Detall - Detalle'!$Z:$Z,'Pressupost - Pressupuesto'!$A15,'Detall - Detalle'!$Y:$Y,F$3)","v":0},{"$f":"SUMIFS('Detall - Detalle'!$U:$U,'Detall - Detalle'!$Z:$Z,'Pressupost - Pressupuesto'!$A15,'Detall - Detalle'!$Y:$Y,G$3)","v":0}]
["a9 Treballs tècnics i professionals / Trabajos técnicos y profesionales",0,{"$f":"+SUMIFS('Detall - Detalle'!V:V,'Detall - Detalle'!Z:Z,'Pressupost - Pressupuesto'!A16)","v":0},{"$f":"+SUMIFS('Detall - Detalle'!W:W,'Detall - Detalle'!Z:Z,'Pressupost - Pressupuesto'!A16)","v":0},{"$f":"+SUMIFS('Detall - Detalle'!X:X,'Detall - Detalle'!Z:Z,'Pressupost - Pressupuesto'!A16)","v":0},{"$f":"SUMIFS('Detall - Detalle'!$U:$U,'Detall - Detalle'!$Z:$Z,'Pressupost - Pressupuesto'!$A16,'Detall - Detalle'!$Y:$Y,F$3)","v":0},{"$f":"SUMIFS('Detall - Detalle'!$U:$U,'Detall - Detalle'!$Z:$Z,'Pressupost - Pressupuesto'!$A16,'Detall - Detalle'!$Y:$Y,G$3)","v":0}]
["a10 Identificació i formulació / Identificación y formulación",0,{"$f":"+SUMIFS('Detall - Detalle'!V:V,'Detall - Detalle'!Z:Z,'Pressupost - Pressupuesto'!A17)","v":0},{"$f":"+SUMIFS('Detall - Detalle'!W:W,'Detall - Detalle'!Z:Z,'Pressupost - Pressupuesto'!A17)","v":0},{"$f":"+SUMIFS('Detall - Detalle'!X:X,'Detall - Detalle'!Z:Z,'Pressupost - Pressupuesto'!A17)","v":0},{"$f":"SUMIFS('Detall - Detalle'!$U:$U,'Detall - Detalle'!$Z:$Z,'Pressupost - Pressupuesto'!$A17,'Detall - Detalle'!$Y:$Y,F$3)","v":0},{"$f":"SUMIFS('Detall - Detalle'!$U:$U,'Detall - Detalle'!$Z:$Z,'Pressupost - Pressupuesto'!$A17,'Detall - Detalle'!$Y:$Y,G$3)","v":0}]
["a11 Avaluació / Evaluación",0,{"$f":"+SUMIFS('Detall - Detalle'!V:V,'Detall - Detalle'!Z:Z,'Pressupost - Pressupuesto'!A18)","v":0},{"$f":"+SUMIFS('Detall - Detalle'!W:W,'Detall - Detalle'!Z:Z,'Pressupost - Pressupuesto'!A18)","v":0},{"$f":"+SUMIFS('Detall - Detalle'!X:X,'Detall - Detalle'!Z:Z,'Pressupost - Pressupuesto'!A18)","v":0},{"$f":"SUMIFS('Detall - Detalle'!$U:$U,'Detall - Detalle'!$Z:$Z,'Pressupost - Pressupuesto'!$A18,'Detall - Detalle'!$Y:$Y,F$3)","v":0},{"$f":"SUMIFS('Detall - Detalle'!$U:$U,'Detall - Detalle'!$Z:$Z,'Pressupost - Pressupuesto'!$A18,'Detall - Detalle'!$Y:$Y,G$3)","v":0}]
["a12 Dietes, locomoció, trasllats i allotjaments / Dietas, locomoción, traslados y alojamientos",0,{"$f":"+SUMIFS('Detall - Detalle'!V:V,'Detall - Detalle'!Z:Z,'Pressupost - Pressupuesto'!A19)","v":0},{"$f":"+SUMIFS('Detall - Detalle'!W:W,'Detall - Detalle'!Z:Z,'Pressupost - Pressupuesto'!A19)","v":0},{"$f":"+SUMIFS('Detall - Detalle'!X:X,'Detall - Detalle'!Z:Z,'Pressupost - Pressupuesto'!A19)","v":0},{"$f":"SUMIFS('Detall - Detalle'!$U:$U,'Detall - Detalle'!$Z:$Z,'Pressupost - Pressupuesto'!$A19,'Detall - Detalle'!$Y:$Y,F$3)","v":0},{"$f":"SUMIFS('Detall - Detalle'!$U:$U,'Detall - Detalle'!$Z:$Z,'Pressupost - Pressupuesto'!$A19,'Detall - Detalle'!$Y:$Y,G$3)","v":0}]
["a13 Informe auditor / Informe de auditor",0,{"$f":"+SUMIFS('Detall - Detalle'!V:V,'Detall - Detalle'!Z:Z,'Pressupost - Pressupuesto'!A20)","v":0},{"$f":"+SUMIFS('Detall - Detalle'!W:W,'Detall - Detalle'!Z:Z,'Pressupost - Pressupuesto'!A20)","v":0},{"$f":"+SUMIFS('Detall - Detalle'!X:X,'Detall - Detalle'!Z:Z,'Pressupost - Pressupuesto'!A20)","v":0},{"$f":"SUMIFS('Detall - Detalle'!$U:$U,'Detall - Detalle'!$Z:$Z,'Pressupost - Pressupuesto'!$A20,'Detall - Detalle'!$Y:$Y,F$3)","v":0},{"$f":"SUMIFS('Detall - Detalle'!$U:$U,'Detall - Detalle'!$Z:$Z,'Pressupost - Pressupuesto'!$A20,'Detall - Detalle'!$Y:$Y,G$3)","v":0}]
["a14 Despeses financeres / Gastos financieros",0,{"$f":"+SUMIFS('Detall - Detalle'!V:V,'Detall - Detalle'!Z:Z,'Pressupost - Pressupuesto'!A21)","v":0},{"$f":"+SUMIFS('Detall - Detalle'!W:W,'Detall - Detalle'!Z:Z,'Pressupost - Pressupuesto'!A21)","v":0},{"$f":"+SUMIFS('Detall - Detalle'!X:X,'Detall - Detalle'!Z:Z,'Pressupost - Pressupuesto'!A21)","v":0},{"$f":"SUMIFS('Detall - Detalle'!$U:$U,'Detall - Detalle'!$Z:$Z,'Pressupost - Pressupuesto'!$A21,'Detall - Detalle'!$Y:$Y,F$3)","v":0},{"$f":"SUMIFS('Detall - Detalle'!$U:$U,'Detall - Detalle'!$Z:$Z,'Pressupost - Pressupuesto'!$A21,'Detall - Detalle'!$Y:$Y,G$3)","v":0}]
["a15 Despeses de suport legal / Gastos de soporte legal",0,{"$f":"+SUMIFS('Detall - Detalle'!V:V,'Detall - Detalle'!Z:Z,'Pressupost - Pressupuesto'!A22)","v":0},{"$f":"+SUMIFS('Detall - Detalle'!W:W,'Detall - Detalle'!Z:Z,'Pressupost - Pressupuesto'!A22)","v":0},{"$f":"+SUMIFS('Detall - Detalle'!X:X,'Detall - Detalle'!Z:Z,'Pressupost - Pressupuesto'!A22)","v":0},{"$f":"SUMIFS('Detall - Detalle'!$U:$U,'Detall - Detalle'!$Z:$Z,'Pressupost - Pressupuesto'!$A22,'Detall - Detalle'!$Y:$Y,F$3)","v":0},{"$f":"SUMIFS('Detall - Detalle'!$U:$U,'Detall - Detalle'!$Z:$Z,'Pressupost - Pressupuesto'!$A22,'Detall - Detalle'!$Y:$Y,G$3)","v":0}]
["a16 Imprevistos / Imprevistos",0,{"$f":"+SUMIFS('Detall - Detalle'!V:V,'Detall - Detalle'!Z:Z,'Pressupost - Pressupuesto'!A23)","v":0},{"$f":"+SUMIFS('Detall - Detalle'!W:W,'Detall - Detalle'!Z:Z,'Pressupost - Pressupuesto'!A23)","v":0},{"$f":"+SUMIFS('Detall - Detalle'!X:X,'Detall - Detalle'!Z:Z,'Pressupost - Pressupuesto'!A23)","v":0},{"$f":"SUMIFS('Detall - Detalle'!$U:$U,'Detall - Detalle'!$Z:$Z,'Pressupost - Pressupuesto'!$A23,'Detall - Detalle'!$Y:$Y,F$3)","v":0},{"$f":"SUMIFS('Detall - Detalle'!$U:$U,'Detall - Detalle'!$Z:$Z,'Pressupost - Pressupuesto'!$A23,'Detall - Detalle'!$Y:$Y,G$3)","v":0}]
["DESPESES DIRECTES D'INVERSIÓ (Capítol VII) / GASTOS DIRECTOS DE INVERSIÓN (Capítulo VII)",{"$f":"SUM(B25:B25)","v":0},0,0,0,0,0]
["b1 Béns inventariables / Bienes inventariables",{"$f":"SUM(C25:E25)","v":0},{"$f":"+SUMIFS('Detall - Detalle'!V:V,'Detall - Detalle'!C:C,'Pressupost - Pressupuesto'!A25)","v":0},{"$f":"+SUMIFS('Detall - Detalle'!W:W,'Detall - Detalle'!C:C,'Pressupost - Pressupuesto'!A25)","v":0},{"$f":"+SUMIFS('Detall - Detalle'!X:X,'Detall - Detalle'!Z:Z,'Pressupost - Pressupuesto'!A25)","v":0},{"$f":"SUMIFS('Detall - Detalle'!$U:$U,'Detall - Detalle'!$Z:$Z,'Pressupost - Pressupuesto'!$A25,'Detall - Detalle'!$Y:$Y,F$3)","v":0},{"$f":"SUMIFS('Detall - Detalle'!$U:$U,'Detall - Detalle'!$Z:$Z,'Pressupost - Pressupuesto'!$A25,'Detall - Detalle'!$Y:$Y,G$3)","v":0}]
["TOTAL DESPESES DIRECTES / TOTAL GASTOS DIRECTOS",{"$f":"SUM(C26:E26)","v":0},{"$f":"+C24+C4","v":0},{"$f":"+D24+D4","v":0},{"$f":"+E24+E4","v":0},{"$f":"+F24+F4","v":0},{"$f":"+G24+G4","v":0}]
["DESPESES INDIRECTES (Cap IV) / GASTOS INDIRECTOS (Cap IV)",{"$f":"SUM(C27:E27)","v":0},{"$f":"+SUMIF('Detall - Detalle'!$Z:$Z,$A27,'Detall - Detalle'!$V:$V)","v":0},{"$f":"+SUMIF('Detall - Detalle'!$Z:$Z,$A27,'Detall - Detalle'!$W:$W)","v":0},{"$f":"+SUMIFS('Detall - Detalle'!$X:$X,'Detall - Detalle'!$Z:$Z,'Pressupost - Pressupuesto'!$A27,'Detall - Detalle'!$Y:$Y,E$3)","v":0},{"$f":"SUMIFS('Detall - Detalle'!$U:$U,'Detall - Detalle'!$Z:$Z,'Pressupost - Pressupuesto'!$A27,'Detall - Detalle'!$Y:$Y,F$3)","v":0},{"$f":"SUMIFS('Detall - Detalle'!$U:$U,'Detall - Detalle'!$Z:$Z,'Pressupost - Pressupuesto'!$A27,'Detall - Detalle'!$Y:$Y,G$3)","v":0}]
["TOTAL DESPESES / TOTAL GASTOS",0,{"$f":"+C27+C26","v":0},{"$f":"+D27+D26","v":0},{"$f":"+E27+E26","v":0},{"$f":"+F27+F26","v":0},{"$f":"+G27+G26","v":0}]
[]
[]
["PRESSUPOST PER ACTIVITATS",null,{"$f":"+IF(C33<>\"\",\"Activitat \"&COUNTA($C$33:C33),\"\")","v":"Activitat 1"},{"$f":"+IF(D33<>\"\",\"Activitat \"&COUNTA($C$33:D33),\"\")","v":""},{"$f":"+IF(E33<>\"\",\"Activitat \"&COUNTA($C$33:E33),\"\")","v":""},{"$f":"+IF(F33<>\"\",\"Activitat \"&COUNTA($C$33:F33),\"\")","v":""},{"$f":"+IF(G33<>\"\",\"Activitat \"&COUNTA($C$33:G33),\"\")","v":""},{"$f":"+IF(H33<>\"\",\"Activitat \"&COUNTA($C$33:H33),\"\")","v":""},{"$f":"+IF(I33<>\"\",\"Activitat \"&COUNTA($C$33:I33),\"\")","v":""},{"$f":"+IF(J33<>\"\",\"Activitat \"&COUNTA($C$33:J33),\"\")","v":""},{"$f":"+IF(K33<>\"\",\"Activitat \"&COUNTA($C$33:K33),\"\")","v":""},{"$f":"+IF(L33<>\"\",\"Activitat \"&COUNTA($C$33:L33),\"\")","v":""},{"$f":"+IF(M33<>\"\",\"Activitat \"&COUNTA($C$33:M33),\"\")","v":""},{"$f":"+IF(N33<>\"\",\"Activitat \"&COUNTA($C$33:N33),\"\")","v":""},{"$f":"+IF(O33<>\"\",\"Activitat \"&COUNTA($C$33:O33),\"\")","v":""},{"$f":"+IF(P33<>\"\",\"Activitat \"&COUNTA($C$33:P33),\"\")","v":""},{"$f":"+IF(Q33<>\"\",\"Activitat \"&COUNTA($C$33:Q33),\"\")","v":""},{"$f":"+IF(R33<>\"\",\"Activitat \"&COUNTA($C$33:R33),\"\")","v":""},{"$f":"+IF(S33<>\"\",\"Activitat \"&COUNTA($C$33:S33),\"\")","v":""},{"$f":"+IF(T33<>\"\",\"Activitat \"&COUNTA($C$33:T33),\"\")","v":""},{"$f":"+IF(U33<>\"\",\"Activitat \"&COUNTA($C$33:U33),\"\")","v":""},{"$f":"+IF(V33<>\"\",\"Activitat \"&COUNTA($C$33:V33),\"\")","v":""}]
[null,"% imputació",{"$f":"+IF(C33<>\"\",VLOOKUP(C31,'Dades i com... - Datos y com...'!$C$38:$E$57,3,FALSE),\"\")","v":0},{"$f":"+IF(D33<>\"\",VLOOKUP(D31,'Dades i com... - Datos y com...'!$C$38:$E$57,3,FALSE),\"\")","v":""},{"$f":"+IF(E33<>\"\",VLOOKUP(E31,'Dades i com... - Datos y com...'!$C$38:$E$57,3,FALSE),\"\")","v":""},{"$f":"+IF(F33<>\"\",VLOOKUP(F31,'Dades i com... - Datos y com...'!$C$38:$E$57,3,FALSE),\"\")","v":""},{"$f":"+IF(G33<>\"\",VLOOKUP(G31,'Dades i com... - Datos y com...'!$C$38:$E$57,3,FALSE),\"\")","v":""},{"$f":"+IF(H33<>\"\",VLOOKUP(H31,'Dades i com... - Datos y com...'!$C$38:$E$57,3,FALSE),\"\")","v":""},{"$f":"+IF(I33<>\"\",VLOOKUP(I31,'Dades i com... - Datos y com...'!$C$38:$E$57,3,FALSE),\"\")","v":""},{"$f":"+IF(J33<>\"\",VLOOKUP(J31,'Dades i com... - Datos y com...'!$C$38:$E$57,3,FALSE),\"\")","v":""},{"$f":"+IF(K33<>\"\",VLOOKUP(K31,'Dades i com... - Datos y com...'!$C$38:$E$57,3,FALSE),\"\")","v":""},{"$f":"+IF(L33<>\"\",VLOOKUP(L31,'Dades i com... - Datos y com...'!$C$38:$E$57,3,FALSE),\"\")","v":""},{"$f":"+IF(M33<>\"\",VLOOKUP(M31,'Dades i com... - Datos y com...'!$C$38:$E$57,3,FALSE),\"\")","v":""},{"$f":"+IF(N33<>\"\",VLOOKUP(N31,'Dades i com... - Datos y com...'!$C$38:$E$57,3,FALSE),\"\")","v":""},{"$f":"+IF(O33<>\"\",VLOOKUP(O31,'Dades i com... - Datos y com...'!$C$38:$E$57,3,FALSE),\"\")","v":""},{"$f":"+IF(P33<>\"\",VLOOKUP(P31,'Dades i com... - Datos y com...'!$C$38:$E$57,3,FALSE),\"\")","v":""},{"$f":"+IF(Q33<>\"\",VLOOKUP(Q31,'Dades i com... - Datos y com...'!$C$38:$E$57,3,FALSE),\"\")","v":""},{"$f":"+IF(R33<>\"\",VLOOKUP(R31,'Dades i com... - Datos y com...'!$C$38:$E$57,3,FALSE),\"\")","v":""},{"$f":"+IF(S33<>\"\",VLOOKUP(S31,'Dades i com... - Datos y com...'!$C$38:$E$57,3,FALSE),\"\")","v":""},{"$f":"+IF(T33<>\"\",VLOOKUP(T31,'Dades i com... - Datos y com...'!$C$38:$E$57,3,FALSE),\"\")","v":""},{"$f":"+IF(U33<>\"\",VLOOKUP(U31,'Dades i com... - Datos y com...'!$C$38:$E$57,3,FALSE),\"\")","v":""},{"$f":"+IF(V33<>\"\",VLOOKUP(V31,'Dades i com... - Datos y com...'!$C$38:$E$57,3,FALSE),\"\")","v":""}]
[null,"Despeses transversals",{"$f":"IF('Dades i com... - Datos y com...'!D38=\"\",\"\",'Dades i com... - Datos y com...'!D38)","v":"Activitat 1"},{"$f":"+IF('Dades i com... - Datos y com...'!D39=\"\",\"\",'Dades i com... - Datos y com...'!D39)","v":""},{"$f":"+IF('Dades i com... - Datos y com...'!D40=\"\",\"\",'Dades i com... - Datos y com...'!D40)","v":""},{"$f":"+IF('Dades i com... - Datos y com...'!D41=\"\",\"\",'Dades i com... - Datos y com...'!D41)","v":""},{"$f":"+IF('Dades i com... - Datos y com...'!D42=\"\",\"\",'Dades i com... - Datos y com...'!D42)","v":""},{"$f":"+IF('Dades i com... - Datos y com...'!D43=\"\",\"\",'Dades i com... - Datos y com...'!D43)","v":""},{"$f":"+IF('Dades i com... - Datos y com...'!D44=\"\",\"\",'Dades i com... - Datos y com...'!D44)","v":""},{"$f":"+IF('Dades i com... - Datos y com...'!D45=\"\",\"\",'Dades i com... - Datos y com...'!D45)","v":""},{"$f":"+IF('Dades i com... - Datos y com...'!D46=\"\",\"\",'Dades i com... - Datos y com...'!D46)","v":""},{"$f":"+IF('Dades i com... - Datos y com...'!D47=\"\",\"\",'Dades i com... - Datos y com...'!D47)","v":""},{"$f":"++IF('Dades i com... - Datos y com...'!D48=\"\",\"\",'Dades i com... - Datos y com...'!D48)","v":""},{"$f":"IF('Dades i com... - Datos y com...'!D49=\"\",\"\",'Dades i com... - Datos y com...'!D49)","v":""},{"$f":"IF('Dades i com... - Datos y com...'!D50=\"\",\"\",'Dades i com... - Datos y com...'!D50)","v":""},{"$f":"IF('Dades i com... - Datos y com...'!D51=\"\",\"\",'Dades i com... - Datos y com...'!D51)","v":""},{"$f":"+IF('Dades i com... - Datos y com...'!D52=\"\",\"\",'Dades i com... - Datos y com...'!D52)","v":""},{"$f":"+IF('Dades i com... - Datos y com...'!D53=\"\",\"\",'Dades i com... - Datos y com...'!D53)","v":""},{"$f":"IF('Dades i com... - Datos y com...'!D54=\"\",\"\",'Dades i com... - Datos y com...'!D54)","v":""},{"$f":"IF('Dades i com... - Datos y com...'!D55=\"\",\"\",'Dades i com... - Datos y com...'!D55)","v":""},{"$f":"+IF('Dades i com... - Datos y com...'!D56=\"\",\"\",'Dades i com... - Datos y com...'!D56)","v":""},{"$f":"+IF('Dades i com... - Datos y com...'!D57=\"\",\"\",'Dades i com... - Datos y com...'!D57)","v":""}]
["DESPESES DIRECTES CORRENTS (Capítol IV) / GASTOS DIRECTOS CORRIENTES (Capítulo IV)",{"$f":"+SUM(B35,B39:B53)","v":0},0,{"$error":"#VALUE!"},{"$error":"#VALUE!"},{"$error":"#VALUE!"},{"$error":"#VALUE!"},{"$error":"#VALUE!"},{"$error":"#VALUE!"},{"$error":"#VALUE!"},{"$error":"#VALUE!"},{"$error":"#VALUE!"},{"$error":"#VALUE!"},{"$error":"#VALUE!"},{"$error":"#VALUE!"},{"$error":"#VALUE!"},{"$error":"#VALUE!"},{"$error":"#VALUE!"},{"$error":"#VALUE!"},{"$error":"#VALUE!"},{"$error":"#VALUE!"},{"$error":"#VALUE!"}]
["a1. Remuneració  personal assalariat / Remuneracion personal asalariado",{"$f":"SUM(B36:B38)","v":0},{"$f":"SUM(C36:C38)","v":0},{"$f":"SUM(D36:D38)","v":{"$error":"#VALUE!"}},{"$error":"#VALUE!"},{"$error":"#VALUE!"},{"$error":"#VALUE!"},{"$error":"#VALUE!"},{"$error":"#VALUE!"},{"$error":"#VALUE!"},{"$error":"#VALUE!"},{"$error":"#VALUE!"},{"$error":"#VALUE!"},{"$error":"#VALUE!"},{"$f":"SUM(O36:O38)","v":{"$error":"#VALUE!"}},{"$error":"#VALUE!"},{"$error":"#VALUE!"},{"$error":"#VALUE!"},{"$error":"#VALUE!"},{"$error":"#VALUE!"},{"$error":"#VALUE!"},{"$error":"#VALUE!"}]
["a1.1 Personal assalariat local / Personal asalariado local",{"$f":"+SUMIFS('Detall - Detalle'!$U:$U,'Detall - Detalle'!$S:$S,B$33,'Detall - Detalle'!$Z:$Z,'Pressupost - Pressupuesto'!$A6)","v":0},{"$f":"+SUMIFS('Detall - Detalle'!$U:$U,'Detall - Detalle'!$S:$S,C$33,'Detall - Detalle'!$Z:$Z,'Pressupost - Pressupuesto'!$A6)+$B36*C$32","v":0},{"$f":"+SUMIFS('Detall - Detalle'!$U:$U,'Detall - Detalle'!$S:$S,D$33,'Detall - Detalle'!$Z:$Z,'Pressupost - Pressupuesto'!$A6)+$B36*D$32","v":{"$error":"#VALUE!"}},{"$f":"+SUMIFS('Detall - Detalle'!$U:$U,'Detall - Detalle'!$S:$S,E$33,'Detall - Detalle'!$Z:$Z,'Pressupost - Pressupuesto'!$A6)+$B36*E$32","v":{"$error":"#VALUE!"}},{"$f":"+SUMIFS('Detall - Detalle'!$U:$U,'Detall - Detalle'!$S:$S,F$33,'Detall - Detalle'!$Z:$Z,'Pressupost - Pressupuesto'!$A6)+$B36*F$32","v":{"$error":"#VALUE!"}},{"$f":"+SUMIFS('Detall - Detalle'!$U:$U,'Detall - Detalle'!$S:$S,G$33,'Detall - Detalle'!$Z:$Z,'Pressupost - Pressupuesto'!$A6)+$B36*G$32","v":{"$error":"#VALUE!"}},{"$f":"+SUMIFS('Detall - Detalle'!$U:$U,'Detall - Detalle'!$S:$S,H$33,'Detall - Detalle'!$Z:$Z,'Pressupost - Pressupuesto'!$A6)+$B36*H$32","v":{"$error":"#VALUE!"}},{"$f":"+SUMIFS('Detall - Detalle'!$U:$U,'Detall - Detalle'!$S:$S,I$33,'Detall - Detalle'!$Z:$Z,'Pressupost - Pressupuesto'!$A6)+$B36*I$32","v":{"$error":"#VALUE!"}},{"$f":"+SUMIFS('Detall - Detalle'!$U:$U,'Detall - Detalle'!$S:$S,J$33,'Detall - Detalle'!$Z:$Z,'Pressupost - Pressupuesto'!$A6)+$B36*J$32","v":{"$error":"#VALUE!"}},{"$f":"+SUMIFS('Detall - Detalle'!$U:$U,'Detall - Detalle'!$S:$S,K$33,'Detall - Detalle'!$Z:$Z,'Pressupost - Pressupuesto'!$A6)+$B36*K$32","v":{"$error":"#VALUE!"}},{"$f":"+SUMIFS('Detall - Detalle'!$U:$U,'Detall - Detalle'!$S:$S,L$33,'Detall - Detalle'!$Z:$Z,'Pressupost - Pressupuesto'!$A6)+$B36*L$32","v":{"$error":"#VALUE!"}},{"$f":"+SUMIFS('Detall - Detalle'!$U:$U,'Detall - Detalle'!$S:$S,M$33,'Detall - Detalle'!$Z:$Z,'Pressupost - Pressupuesto'!$A6)+$B36*M$32","v":{"$error":"#VALUE!"}},{"$f":"+SUMIFS('Detall - Detalle'!$U:$U,'Detall - Detalle'!$S:$S,N$33,'Detall - Detalle'!$Z:$Z,'Pressupost - Pressupuesto'!$A6)+$B36*N$32","v":{"$error":"#VALUE!"}},{"$f":"+SUMIFS('Detall - Detalle'!$U:$U,'Detall - Detalle'!$S:$S,O$33,'Detall - Detalle'!$Z:$Z,'Pressupost - Pressupuesto'!$A6)+$B36*O$32","v":{"$error":"#VALUE!"}},{"$f":"+SUMIFS('Detall - Detalle'!$U:$U,'Detall - Detalle'!$S:$S,P$33,'Detall - Detalle'!$Z:$Z,'Pressupost - Pressupuesto'!$A6)+$B36*P$32","v":{"$error":"#VALUE!"}},{"$f":"+SUMIFS('Detall - Detalle'!$U:$U,'Detall - Detalle'!$S:$S,Q$33,'Detall - Detalle'!$Z:$Z,'Pressupost - Pressupuesto'!$A6)+$B36*Q$32","v":{"$error":"#VALUE!"}},{"$f":"+SUMIFS('Detall - Detalle'!$U:$U,'Detall - Detalle'!$S:$S,R$33,'Detall - Detalle'!$Z:$Z,'Pressupost - Pressupuesto'!$A6)+$B36*R$32","v":{"$error":"#VALUE!"}},{"$f":"+SUMIFS('Detall - Detalle'!$U:$U,'Detall - Detalle'!$S:$S,S$33,'Detall - Detalle'!$Z:$Z,'Pressupost - Pressupuesto'!$A6)+$B36*S$32","v":{"$error":"#VALUE!"}},{"$f":"+SUMIFS('Detall - Detalle'!$U:$U,'Detall - Detalle'!$S:$S,T$33,'Detall - Detalle'!$Z:$Z,'Pressupost - Pressupuesto'!$A6)+$B36*T$32","v":{"$error":"#VALUE!"}},{"$f":"+SUMIFS('Detall - Detalle'!$U:$U,'Detall - Detalle'!$S:$S,U$33,'Detall - Detalle'!$Z:$Z,'Pressupost - Pressupuesto'!$A6)+$B36*U$32","v":{"$error":"#VALUE!"}},{"$f":"+SUMIFS('Detall - Detalle'!$U:$U,'Detall - Detalle'!$S:$S,V$33,'Detall - Detalle'!$Z:$Z,'Pressupost - Pressupuesto'!$A6)+$B36*V$32","v":{"$error":"#VALUE!"}}]
["a1.2 Personal assalariat expatriat / Personal asalariado expatriado",{"$f":"+SUMIFS('Detall - Detalle'!$U:$U,'Detall - Detalle'!$S:$S,B$33,'Detall - Detalle'!$Z:$Z,'Pressupost - Pressupuesto'!$A7)","v":0},{"$f":"+SUMIFS('Detall - Detalle'!$U:$U,'Detall - Detalle'!$S:$S,C$33,'Detall - Detalle'!$Z:$Z,'Pressupost - Pressupuesto'!$A7)+$B37*C$32","v":0},{"$f":"+SUMIFS('Detall - Detalle'!$U:$U,'Detall - Detalle'!$S:$S,D$33,'Detall - Detalle'!$Z:$Z,'Pressupost - Pressupuesto'!$A7)+$B37*D$32","v":{"$error":"#VALUE!"}},{"$f":"+SUMIFS('Detall - Detalle'!$U:$U,'Detall - Detalle'!$S:$S,E$33,'Detall - Detalle'!$Z:$Z,'Pressupost - Pressupuesto'!$A7)+$B37*E$32","v":{"$error":"#VALUE!"}},{"$f":"+SUMIFS('Detall - Detalle'!$U:$U,'Detall - Detalle'!$S:$S,F$33,'Detall - Detalle'!$Z:$Z,'Pressupost - Pressupuesto'!$A7)+$B37*F$32","v":{"$error":"#VALUE!"}},{"$f":"+SUMIFS('Detall - Detalle'!$U:$U,'Detall - Detalle'!$S:$S,G$33,'Detall - Detalle'!$Z:$Z,'Pressupost - Pressupuesto'!$A7)+$B37*G$32","v":{"$error":"#VALUE!"}},{"$f":"+SUMIFS('Detall - Detalle'!$U:$U,'Detall - Detalle'!$S:$S,H$33,'Detall - Detalle'!$Z:$Z,'Pressupost - Pressupuesto'!$A7)+$B37*H$32","v":{"$error":"#VALUE!"}},{"$f":"+SUMIFS('Detall - Detalle'!$U:$U,'Detall - Detalle'!$S:$S,I$33,'Detall - Detalle'!$Z:$Z,'Pressupost - Pressupuesto'!$A7)+$B37*I$32","v":{"$error":"#VALUE!"}},{"$f":"+SUMIFS('Detall - Detalle'!$U:$U,'Detall - Detalle'!$S:$S,J$33,'Detall - Detalle'!$Z:$Z,'Pressupost - Pressupuesto'!$A7)+$B37*J$32","v":{"$error":"#VALUE!"}},{"$f":"+SUMIFS('Detall - Detalle'!$U:$U,'Detall - Detalle'!$S:$S,K$33,'Detall - Detalle'!$Z:$Z,'Pressupost - Pressupuesto'!$A7)+$B37*K$32","v":{"$error":"#VALUE!"}},{"$f":"+SUMIFS('Detall - Detalle'!$U:$U,'Detall - Detalle'!$S:$S,L$33,'Detall - Detalle'!$Z:$Z,'Pressupost - Pressupuesto'!$A7)+$B37*L$32","v":{"$error":"#VALUE!"}},{"$f":"+SUMIFS('Detall - Detalle'!$U:$U,'Detall - Detalle'!$S:$S,M$33,'Detall - Detalle'!$Z:$Z,'Pressupost - Pressupuesto'!$A7)+$B37*M$32","v":{"$error":"#VALUE!"}},{"$f":"+SUMIFS('Detall - Detalle'!$U:$U,'Detall - Detalle'!$S:$S,N$33,'Detall - Detalle'!$Z:$Z,'Pressupost - Pressupuesto'!$A7)+$B37*N$32","v":{"$error":"#VALUE!"}},{"$f":"+SUMIFS('Detall - Detalle'!$U:$U,'Detall - Detalle'!$S:$S,O$33,'Detall - Detalle'!$Z:$Z,'Pressupost - Pressupuesto'!$A7)+$B37*O$32","v":{"$error":"#VALUE!"}},{"$f":"+SUMIFS('Detall - Detalle'!$U:$U,'Detall - Detalle'!$S:$S,P$33,'Detall - Detalle'!$Z:$Z,'Pressupost - Pressupuesto'!$A7)+$B37*P$32","v":{"$error":"#VALUE!"}},{"$f":"+SUMIFS('Detall - Detalle'!$U:$U,'Detall - Detalle'!$S:$S,Q$33,'Detall - Detalle'!$Z:$Z,'Pressupost - Pressupuesto'!$A7)+$B37*Q$32","v":{"$error":"#VALUE!"}},{"$f":"+SUMIFS('Detall - Detalle'!$U:$U,'Detall - Detalle'!$S:$S,R$33,'Detall - Detalle'!$Z:$Z,'Pressupost - Pressupuesto'!$A7)+$B37*R$32","v":{"$error":"#VALUE!"}},{"$f":"+SUMIFS('Detall - Detalle'!$U:$U,'Detall - Detalle'!$S:$S,S$33,'Detall - Detalle'!$Z:$Z,'Pressupost - Pressupuesto'!$A7)+$B37*S$32","v":{"$error":"#VALUE!"}},{"$f":"+SUMIFS('Detall - Detalle'!$U:$U,'Detall - Detalle'!$S:$S,T$33,'Detall - Detalle'!$Z:$Z,'Pressupost - Pressupuesto'!$A7)+$B37*T$32","v":{"$error":"#VALUE!"}},{"$f":"+SUMIFS('Detall - Detalle'!$U:$U,'Detall - Detalle'!$S:$S,U$33,'Detall - Detalle'!$Z:$Z,'Pressupost - Pressupuesto'!$A7)+$B37*U$32","v":{"$error":"#VALUE!"}},{"$f":"+SUMIFS('Detall - Detalle'!$U:$U,'Detall - Detalle'!$S:$S,V$33,'Detall - Detalle'!$Z:$Z,'Pressupost - Pressupuesto'!$A7)+$B37*V$32","v":{"$error":"#VALUE!"}}]
["a1.3 Personal assalariat a Catalunya / Personal asalariado Cataluña",{"$f":"+SUMIFS('Detall - Detalle'!$U:$U,'Detall - Detalle'!$S:$S,B$33,'Detall - Detalle'!$Z:$Z,'Pressupost - Pressupuesto'!$A8)","v":0},{"$f":"+SUMIFS('Detall - Detalle'!$U:$U,'Detall - Detalle'!$S:$S,C$33,'Detall - Detalle'!$Z:$Z,'Pressupost - Pressupuesto'!$A8)+$B38*C$32","v":0},{"$f":"+SUMIFS('Detall - Detalle'!$U:$U,'Detall - Detalle'!$S:$S,D$33,'Detall - Detalle'!$Z:$Z,'Pressupost - Pressupuesto'!$A8)+$B38*D$32","v":{"$error":"#VALUE!"}},{"$f":"+SUMIFS('Detall - Detalle'!$U:$U,'Detall - Detalle'!$S:$S,E$33,'Detall - Detalle'!$Z:$Z,'Pressupost - Pressupuesto'!$A8)+$B38*E$32","v":{"$error":"#VALUE!"}},{"$f":"+SUMIFS('Detall - Detalle'!$U:$U,'Detall - Detalle'!$S:$S,F$33,'Detall - Detalle'!$Z:$Z,'Pressupost - Pressupuesto'!$A8)+$B38*F$32","v":{"$error":"#VALUE!"}},{"$f":"+SUMIFS('Detall - Detalle'!$U:$U,'Detall - Detalle'!$S:$S,G$33,'Detall - Detalle'!$Z:$Z,'Pressupost - Pressupuesto'!$A8)+$B38*G$32","v":{"$error":"#VALUE!"}},{"$f":"+SUMIFS('Detall - Detalle'!$U:$U,'Detall - Detalle'!$S:$S,H$33,'Detall - Detalle'!$Z:$Z,'Pressupost - Pressupuesto'!$A8)+$B38*H$32","v":{"$error":"#VALUE!"}},{"$f":"+SUMIFS('Detall - Detalle'!$U:$U,'Detall - Detalle'!$S:$S,I$33,'Detall - Detalle'!$Z:$Z,'Pressupost - Pressupuesto'!$A8)+$B38*I$32","v":{"$error":"#VALUE!"}},{"$f":"+SUMIFS('Detall - Detalle'!$U:$U,'Detall - Detalle'!$S:$S,J$33,'Detall - Detalle'!$Z:$Z,'Pressupost - Pressupuesto'!$A8)+$B38*J$32","v":{"$error":"#VALUE!"}},{"$f":"+SUMIFS('Detall - Detalle'!$U:$U,'Detall - Detalle'!$S:$S,K$33,'Detall - Detalle'!$Z:$Z,'Pressupost - Pressupuesto'!$A8)+$B38*K$32","v":{"$error":"#VALUE!"}},{"$f":"+SUMIFS('Detall - Detalle'!$U:$U,'Detall - Detalle'!$S:$S,L$33,'Detall - Detalle'!$Z:$Z,'Pressupost - Pressupuesto'!$A8)+$B38*L$32","v":{"$error":"#VALUE!"}},{"$f":"+SUMIFS('Detall - Detalle'!$U:$U,'Detall - Detalle'!$S:$S,M$33,'Detall - Detalle'!$Z:$Z,'Pressupost - Pressupuesto'!$A8)+$B38*M$32","v":{"$error":"#VALUE!"}},{"$f":"+SUMIFS('Detall - Detalle'!$U:$U,'Detall - Detalle'!$S:$S,N$33,'Detall - Detalle'!$Z:$Z,'Pressupost - Pressupuesto'!$A8)+$B38*N$32","v":{"$error":"#VALUE!"}},{"$f":"+SUMIFS('Detall - Detalle'!$U:$U,'Detall - Detalle'!$S:$S,O$33,'Detall - Detalle'!$Z:$Z,'Pressupost - Pressupuesto'!$A8)+$B38*O$32","v":{"$error":"#VALUE!"}},{"$f":"+SUMIFS('Detall - Detalle'!$U:$U,'Detall - Detalle'!$S:$S,P$33,'Detall - Detalle'!$Z:$Z,'Pressupost - Pressupuesto'!$A8)+$B38*P$32","v":{"$error":"#VALUE!"}},{"$f":"+SUMIFS('Detall - Detalle'!$U:$U,'Detall - Detalle'!$S:$S,Q$33,'Detall - Detalle'!$Z:$Z,'Pressupost - Pressupuesto'!$A8)+$B38*Q$32","v":{"$error":"#VALUE!"}},{"$f":"+SUMIFS('Detall - Detalle'!$U:$U,'Detall - Detalle'!$S:$S,R$33,'Detall - Detalle'!$Z:$Z,'Pressupost - Pressupuesto'!$A8)+$B38*R$32","v":{"$error":"#VALUE!"}},{"$f":"+SUMIFS('Detall - Detalle'!$U:$U,'Detall - Detalle'!$S:$S,S$33,'Detall - Detalle'!$Z:$Z,'Pressupost - Pressupuesto'!$A8)+$B38*S$32","v":{"$error":"#VALUE!"}},{"$f":"+SUMIFS('Detall - Detalle'!$U:$U,'Detall - Detalle'!$S:$S,T$33,'Detall - Detalle'!$Z:$Z,'Pressupost - Pressupuesto'!$A8)+$B38*T$32","v":{"$error":"#VALUE!"}},{"$f":"+SUMIFS('Detall - Detalle'!$U:$U,'Detall - Detalle'!$S:$S,U$33,'Detall - Detalle'!$Z:$Z,'Pressupost - Pressupuesto'!$A8)+$B38*U$32","v":{"$error":"#VALUE!"}},{"$f":"+SUMIFS('Detall - Detalle'!$U:$U,'Detall - Detalle'!$S:$S,V$33,'Detall - Detalle'!$Z:$Z,'Pressupost - Pressupuesto'!$A8)+$B38*V$32","v":{"$error":"#VALUE!"}}]
["a2 Lloguers / Alquileres",{"$f":"+SUMIFS('Detall - Detalle'!$U:$U,'Detall - Detalle'!$S:$S,B$33,'Detall - Detalle'!$Z:$Z,'Pressupost - Pressupuesto'!$A9)","v":0},{"$f":"+SUMIFS('Detall - Detalle'!$U:$U,'Detall - Detalle'!$S:$S,C$33,'Detall - Detalle'!$Z:$Z,'Pressupost - Pressupuesto'!$A9)+$B39*C$32","v":0},{"$f":"+SUMIFS('Detall - Detalle'!$U:$U,'Detall - Detalle'!$S:$S,D$33,'Detall - Detalle'!$Z:$Z,'Pressupost - Pressupuesto'!$A9)+$B39*D$32","v":{"$error":"#VALUE!"}},{"$f":"+SUMIFS('Detall - Detalle'!$U:$U,'Detall - Detalle'!$S:$S,E$33,'Detall - Detalle'!$Z:$Z,'Pressupost - Pressupuesto'!$A9)+$B39*E$32","v":{"$error":"#VALUE!"}},{"$f":"+SUMIFS('Detall - Detalle'!$U:$U,'Detall - Detalle'!$S:$S,F$33,'Detall - Detalle'!$Z:$Z,'Pressupost - Pressupuesto'!$A9)+$B39*F$32","v":{"$error":"#VALUE!"}},{"$f":"+SUMIFS('Detall - Detalle'!$U:$U,'Detall - Detalle'!$S:$S,G$33,'Detall - Detalle'!$Z:$Z,'Pressupost - Pressupuesto'!$A9)+$B39*G$32","v":{"$error":"#VALUE!"}},{"$f":"+SUMIFS('Detall - Detalle'!$U:$U,'Detall - Detalle'!$S:$S,H$33,'Detall - Detalle'!$Z:$Z,'Pressupost - Pressupuesto'!$A9)+$B39*H$32","v":{"$error":"#VALUE!"}},{"$f":"+SUMIFS('Detall - Detalle'!$U:$U,'Detall - Detalle'!$S:$S,I$33,'Detall - Detalle'!$Z:$Z,'Pressupost - Pressupuesto'!$A9)+$B39*I$32","v":{"$error":"#VALUE!"}},{"$f":"+SUMIFS('Detall - Detalle'!$U:$U,'Detall - Detalle'!$S:$S,J$33,'Detall - Detalle'!$Z:$Z,'Pressupost - Pressupuesto'!$A9)+$B39*J$32","v":{"$error":"#VALUE!"}},{"$f":"+SUMIFS('Detall - Detalle'!$U:$U,'Detall - Detalle'!$S:$S,K$33,'Detall - Detalle'!$Z:$Z,'Pressupost - Pressupuesto'!$A9)+$B39*K$32","v":{"$error":"#VALUE!"}},{"$f":"+SUMIFS('Detall - Detalle'!$U:$U,'Detall - Detalle'!$S:$S,L$33,'Detall - Detalle'!$Z:$Z,'Pressupost - Pressupuesto'!$A9)+$B39*L$32","v":{"$error":"#VALUE!"}},{"$f":"+SUMIFS('Detall - Detalle'!$U:$U,'Detall - Detalle'!$S:$S,M$33,'Detall - Detalle'!$Z:$Z,'Pressupost - Pressupuesto'!$A9)+$B39*M$32","v":{"$error":"#VALUE!"}},{"$f":"+SUMIFS('Detall - Detalle'!$U:$U,'Detall - Detalle'!$S:$S,N$33,'Detall - Detalle'!$Z:$Z,'Pressupost - Pressupuesto'!$A9)+$B39*N$32","v":{"$error":"#VALUE!"}},{"$f":"+SUMIFS('Detall - Detalle'!$U:$U,'Detall - Detalle'!$S:$S,O$33,'Detall - Detalle'!$Z:$Z,'Pressupost - Pressupuesto'!$A9)+$B39*O$32","v":{"$error":"#VALUE!"}},{"$f":"+SUMIFS('Detall - Detalle'!$U:$U,'Detall - Detalle'!$S:$S,P$33,'Detall - Detalle'!$Z:$Z,'Pressupost - Pressupuesto'!$A9)+$B39*P$32","v":{"$error":"#VALUE!"}},{"$f":"+SUMIFS('Detall - Detalle'!$U:$U,'Detall - Detalle'!$S:$S,Q$33,'Detall - Detalle'!$Z:$Z,'Pressupost - Pressupuesto'!$A9)+$B39*Q$32","v":{"$error":"#VALUE!"}},{"$f":"+SUMIFS('Detall - Detalle'!$U:$U,'Detall - Detalle'!$S:$S,R$33,'Detall - Detalle'!$Z:$Z,'Pressupost - Pressupuesto'!$A9)+$B39*R$32","v":{"$error":"#VALUE!"}},{"$f":"+SUMIFS('Detall - Detalle'!$U:$U,'Detall - Detalle'!$S:$S,S$33,'Detall - Detalle'!$Z:$Z,'Pressupost - Pressupuesto'!$A9)+$B39*S$32","v":{"$error":"#VALUE!"}},{"$f":"+SUMIFS('Detall - Detalle'!$U:$U,'Detall - Detalle'!$S:$S,T$33,'Detall - Detalle'!$Z:$Z,'Pressupost - Pressupuesto'!$A9)+$B39*T$32","v":{"$error":"#VALUE!"}},{"$f":"+SUMIFS('Detall - Detalle'!$U:$U,'Detall - Detalle'!$S:$S,U$33,'Detall - Detalle'!$Z:$Z,'Pressupost - Pressupuesto'!$A9)+$B39*U$32","v":{"$error":"#VALUE!"}},{"$f":"+SUMIFS('Detall - Detalle'!$U:$U,'Detall - Detalle'!$S:$S,V$33,'Detall - Detalle'!$Z:$Z,'Pressupost - Pressupuesto'!$A9)+$B39*V$32","v":{"$error":"#VALUE!"}}]
["a3 Manteniment, conservació i reparació / Mantenimiento, conservación y reparación",{"$f":"+SUMIFS('Detall - Detalle'!$U:$U,'Detall - Detalle'!$S:$S,B$33,'Detall - Detalle'!$Z:$Z,'Pressupost - Pressupuesto'!$A10)","v":0},{"$f":"+SUMIFS('Detall - Detalle'!$U:$U,'Detall - Detalle'!$S:$S,C$33,'Detall - Detalle'!$Z:$Z,'Pressupost - Pressupuesto'!$A10)+$B40*C$32","v":0},{"$f":"+SUMIFS('Detall - Detalle'!$U:$U,'Detall - Detalle'!$S:$S,D$33,'Detall - Detalle'!$Z:$Z,'Pressupost - Pressupuesto'!$A10)+$B40*D$32","v":{"$error":"#VALUE!"}},{"$f":"+SUMIFS('Detall - Detalle'!$U:$U,'Detall - Detalle'!$S:$S,E$33,'Detall - Detalle'!$Z:$Z,'Pressupost - Pressupuesto'!$A10)+$B40*E$32","v":{"$error":"#VALUE!"}},{"$f":"+SUMIFS('Detall - Detalle'!$U:$U,'Detall - Detalle'!$S:$S,F$33,'Detall - Detalle'!$Z:$Z,'Pressupost - Pressupuesto'!$A10)+$B40*F$32","v":{"$error":"#VALUE!"}},{"$f":"+SUMIFS('Detall - Detalle'!$U:$U,'Detall - Detalle'!$S:$S,G$33,'Detall - Detalle'!$Z:$Z,'Pressupost - Pressupuesto'!$A10)+$B40*G$32","v":{"$error":"#VALUE!"}},{"$f":"+SUMIFS('Detall - Detalle'!$U:$U,'Detall - Detalle'!$S:$S,H$33,'Detall - Detalle'!$Z:$Z,'Pressupost - Pressupuesto'!$A10)+$B40*H$32","v":{"$error":"#VALUE!"}},{"$f":"+SUMIFS('Detall - Detalle'!$U:$U,'Detall - Detalle'!$S:$S,I$33,'Detall - Detalle'!$Z:$Z,'Pressupost - Pressupuesto'!$A10)+$B40*I$32","v":{"$error":"#VALUE!"}},{"$f":"+SUMIFS('Detall - Detalle'!$U:$U,'Detall - Detalle'!$S:$S,J$33,'Detall - Detalle'!$Z:$Z,'Pressupost - Pressupuesto'!$A10)+$B40*J$32","v":{"$error":"#VALUE!"}},{"$f":"+SUMIFS('Detall - Detalle'!$U:$U,'Detall - Detalle'!$S:$S,K$33,'Detall - Detalle'!$Z:$Z,'Pressupost - Pressupuesto'!$A10)+$B40*K$32","v":{"$error":"#VALUE!"}},{"$f":"+SUMIFS('Detall - Detalle'!$U:$U,'Detall - Detalle'!$S:$S,L$33,'Detall - Detalle'!$Z:$Z,'Pressupost - Pressupuesto'!$A10)+$B40*L$32","v":{"$error":"#VALUE!"}},{"$f":"+SUMIFS('Detall - Detalle'!$U:$U,'Detall - Detalle'!$S:$S,M$33,'Detall - Detalle'!$Z:$Z,'Pressupost - Pressupuesto'!$A10)+$B40*M$32","v":{"$error":"#VALUE!"}},{"$f":"+SUMIFS('Detall - Detalle'!$U:$U,'Detall - Detalle'!$S:$S,N$33,'Detall - Detalle'!$Z:$Z,'Pressupost - Pressupuesto'!$A10)+$B40*N$32","v":{"$error":"#VALUE!"}},{"$f":"+SUMIFS('Detall - Detalle'!$U:$U,'Detall - Detalle'!$S:$S,O$33,'Detall - Detalle'!$Z:$Z,'Pressupost - Pressupuesto'!$A10)+$B40*O$32","v":{"$error":"#VALUE!"}},{"$f":"+SUMIFS('Detall - Detalle'!$U:$U,'Detall - Detalle'!$S:$S,P$33,'Detall - Detalle'!$Z:$Z,'Pressupost - Pressupuesto'!$A10)+$B40*P$32","v":{"$error":"#VALUE!"}},{"$f":"+SUMIFS('Detall - Detalle'!$U:$U,'Detall - Detalle'!$S:$S,Q$33,'Detall - Detalle'!$Z:$Z,'Pressupost - Pressupuesto'!$A10)+$B40*Q$32","v":{"$error":"#VALUE!"}},{"$f":"+SUMIFS('Detall - Detalle'!$U:$U,'Detall - Detalle'!$S:$S,R$33,'Detall - Detalle'!$Z:$Z,'Pressupost - Pressupuesto'!$A10)+$B40*R$32","v":{"$error":"#VALUE!"}},{"$f":"+SUMIFS('Detall - Detalle'!$U:$U,'Detall - Detalle'!$S:$S,S$33,'Detall - Detalle'!$Z:$Z,'Pressupost - Pressupuesto'!$A10)+$B40*S$32","v":{"$error":"#VALUE!"}},{"$f":"+SUMIFS('Detall - Detalle'!$U:$U,'Detall - Detalle'!$S:$S,T$33,'Detall - Detalle'!$Z:$Z,'Pressupost - Pressupuesto'!$A10)+$B40*T$32","v":{"$error":"#VALUE!"}},{"$f":"+SUMIFS('Detall - Detalle'!$U:$U,'Detall - Detalle'!$S:$S,U$33,'Detall - Detalle'!$Z:$Z,'Pressupost - Pressupuesto'!$A10)+$B40*U$32","v":{"$error":"#VALUE!"}},{"$f":"+SUMIFS('Detall - Detalle'!$U:$U,'Detall - Detalle'!$S:$S,V$33,'Detall - Detalle'!$Z:$Z,'Pressupost - Pressupuesto'!$A10)+$B40*V$32","v":{"$error":"#VALUE!"}}]
["a4 Material ordinari / Material ordinario",{"$f":"+SUMIFS('Detall - Detalle'!$U:$U,'Detall - Detalle'!$S:$S,B$33,'Detall - Detalle'!$Z:$Z,'Pressupost - Pressupuesto'!$A11)","v":0},{"$f":"+SUMIFS('Detall - Detalle'!$U:$U,'Detall - Detalle'!$S:$S,C$33,'Detall - Detalle'!$Z:$Z,'Pressupost - Pressupuesto'!$A11)+$B41*C$32","v":0},{"$f":"+SUMIFS('Detall - Detalle'!$U:$U,'Detall - Detalle'!$S:$S,D$33,'Detall - Detalle'!$Z:$Z,'Pressupost - Pressupuesto'!$A11)+$B41*D$32","v":{"$error":"#VALUE!"}},{"$f":"+SUMIFS('Detall - Detalle'!$U:$U,'Detall - Detalle'!$S:$S,E$33,'Detall - Detalle'!$Z:$Z,'Pressupost - Pressupuesto'!$A11)+$B41*E$32","v":{"$error":"#VALUE!"}},{"$f":"+SUMIFS('Detall - Detalle'!$U:$U,'Detall - Detalle'!$S:$S,F$33,'Detall - Detalle'!$Z:$Z,'Pressupost - Pressupuesto'!$A11)+$B41*F$32","v":{"$error":"#VALUE!"}},{"$f":"+SUMIFS('Detall - Detalle'!$U:$U,'Detall - Detalle'!$S:$S,G$33,'Detall - Detalle'!$Z:$Z,'Pressupost - Pressupuesto'!$A11)+$B41*G$32","v":{"$error":"#VALUE!"}},{"$f":"+SUMIFS('Detall - Detalle'!$U:$U,'Detall - Detalle'!$S:$S,H$33,'Detall - Detalle'!$Z:$Z,'Pressupost - Pressupuesto'!$A11)+$B41*H$32","v":{"$error":"#VALUE!"}},{"$f":"+SUMIFS('Detall - Detalle'!$U:$U,'Detall - Detalle'!$S:$S,I$33,'Detall - Detalle'!$Z:$Z,'Pressupost - Pressupuesto'!$A11)+$B41*I$32","v":{"$error":"#VALUE!"}},{"$f":"+SUMIFS('Detall - Detalle'!$U:$U,'Detall - Detalle'!$S:$S,J$33,'Detall - Detalle'!$Z:$Z,'Pressupost - Pressupuesto'!$A11)+$B41*J$32","v":{"$error":"#VALUE!"}},{"$f":"+SUMIFS('Detall - Detalle'!$U:$U,'Detall - Detalle'!$S:$S,K$33,'Detall - Detalle'!$Z:$Z,'Pressupost - Pressupuesto'!$A11)+$B41*K$32","v":{"$error":"#VALUE!"}},{"$f":"+SUMIFS('Detall - Detalle'!$U:$U,'Detall - Detalle'!$S:$S,L$33,'Detall - Detalle'!$Z:$Z,'Pressupost - Pressupuesto'!$A11)+$B41*L$32","v":{"$error":"#VALUE!"}},{"$f":"+SUMIFS('Detall - Detalle'!$U:$U,'Detall - Detalle'!$S:$S,M$33,'Detall - Detalle'!$Z:$Z,'Pressupost - Pressupuesto'!$A11)+$B41*M$32","v":{"$error":"#VALUE!"}},{"$f":"+SUMIFS('Detall - Detalle'!$U:$U,'Detall - Detalle'!$S:$S,N$33,'Detall - Detalle'!$Z:$Z,'Pressupost - Pressupuesto'!$A11)+$B41*N$32","v":{"$error":"#VALUE!"}},{"$f":"+SUMIFS('Detall - Detalle'!$U:$U,'Detall - Detalle'!$S:$S,O$33,'Detall - Detalle'!$Z:$Z,'Pressupost - Pressupuesto'!$A11)+$B41*O$32","v":{"$error":"#VALUE!"}},{"$f":"+SUMIFS('Detall - Detalle'!$U:$U,'Detall - Detalle'!$S:$S,P$33,'Detall - Detalle'!$Z:$Z,'Pressupost - Pressupuesto'!$A11)+$B41*P$32","v":{"$error":"#VALUE!"}},{"$f":"+SUMIFS('Detall - Detalle'!$U:$U,'Detall - Detalle'!$S:$S,Q$33,'Detall - Detalle'!$Z:$Z,'Pressupost - Pressupuesto'!$A11)+$B41*Q$32","v":{"$error":"#VALUE!"}},{"$f":"+SUMIFS('Detall - Detalle'!$U:$U,'Detall - Detalle'!$S:$S,R$33,'Detall - Detalle'!$Z:$Z,'Pressupost - Pressupuesto'!$A11)+$B41*R$32","v":{"$error":"#VALUE!"}},{"$f":"+SUMIFS('Detall - Detalle'!$U:$U,'Detall - Detalle'!$S:$S,S$33,'Detall - Detalle'!$Z:$Z,'Pressupost - Pressupuesto'!$A11)+$B41*S$32","v":{"$error":"#VALUE!"}},{"$f":"+SUMIFS('Detall - Detalle'!$U:$U,'Detall - Detalle'!$S:$S,T$33,'Detall - Detalle'!$Z:$Z,'Pressupost - Pressupuesto'!$A11)+$B41*T$32","v":{"$error":"#VALUE!"}},{"$f":"+SUMIFS('Detall - Detalle'!$U:$U,'Detall - Detalle'!$S:$S,U$33,'Detall - Detalle'!$Z:$Z,'Pressupost - Pressupuesto'!$A11)+$B41*U$32","v":{"$error":"#VALUE!"}},{"$f":"+SUMIFS('Detall - Detalle'!$U:$U,'Detall - Detalle'!$S:$S,V$33,'Detall - Detalle'!$Z:$Z,'Pressupost - Pressupuesto'!$A11)+$B41*V$32","v":{"$error":"#VALUE!"}}]
["a5 Comunicacions, despeses postals i missatgeria / Comunicaciones, gastos postales y mensajería",{"$f":"+SUMIFS('Detall - Detalle'!$U:$U,'Detall - Detalle'!$S:$S,B$33,'Detall - Detalle'!$Z:$Z,'Pressupost - Pressupuesto'!#REF!)","v":0},{"$f":"+SUMIFS('Detall - Detalle'!$U:$U,'Detall - Detalle'!$S:$S,C$33,'Detall - Detalle'!$Z:$Z,'Pressupost - Pressupuesto'!$A12)+$B42*C$32","v":0},{"$f":"+SUMIFS('Detall - Detalle'!$U:$U,'Detall - Detalle'!$S:$S,D$33,'Detall - Detalle'!$Z:$Z,'Pressupost - Pressupuesto'!$A12)+$B42*D$32","v":{"$error":"#VALUE!"}},{"$f":"+SUMIFS('Detall - Detalle'!$U:$U,'Detall - Detalle'!$S:$S,E$33,'Detall - Detalle'!$Z:$Z,'Pressupost - Pressupuesto'!$A12)+$B42*E$32","v":{"$error":"#VALUE!"}},{"$f":"+SUMIFS('Detall - Detalle'!$U:$U,'Detall - Detalle'!$S:$S,F$33,'Detall - Detalle'!$Z:$Z,'Pressupost - Pressupuesto'!$A12)+$B42*F$32","v":{"$error":"#VALUE!"}},{"$f":"+SUMIFS('Detall - Detalle'!$U:$U,'Detall - Detalle'!$S:$S,G$33,'Detall - Detalle'!$Z:$Z,'Pressupost - Pressupuesto'!$A12)+$B42*G$32","v":{"$error":"#VALUE!"}},{"$f":"+SUMIFS('Detall - Detalle'!$U:$U,'Detall - Detalle'!$S:$S,H$33,'Detall - Detalle'!$Z:$Z,'Pressupost - Pressupuesto'!$A12)+$B42*H$32","v":{"$error":"#VALUE!"}},{"$f":"+SUMIFS('Detall - Detalle'!$U:$U,'Detall - Detalle'!$S:$S,I$33,'Detall - Detalle'!$Z:$Z,'Pressupost - Pressupuesto'!$A12)+$B42*I$32","v":{"$error":"#VALUE!"}},{"$f":"+SUMIFS('Detall - Detalle'!$U:$U,'Detall - Detalle'!$S:$S,J$33,'Detall - Detalle'!$Z:$Z,'Pressupost - Pressupuesto'!$A12)+$B42*J$32","v":{"$error":"#VALUE!"}},{"$f":"+SUMIFS('Detall - Detalle'!$U:$U,'Detall - Detalle'!$S:$S,K$33,'Detall - Detalle'!$Z:$Z,'Pressupost - Pressupuesto'!$A12)+$B42*K$32","v":{"$error":"#VALUE!"}},{"$f":"+SUMIFS('Detall - Detalle'!$U:$U,'Detall - Detalle'!$S:$S,L$33,'Detall - Detalle'!$Z:$Z,'Pressupost - Pressupuesto'!$A12)+$B42*L$32","v":{"$error":"#VALUE!"}},{"$f":"+SUMIFS('Detall - Detalle'!$U:$U,'Detall - Detalle'!$S:$S,M$33,'Detall - Detalle'!$Z:$Z,'Pressupost - Pressupuesto'!$A12)+$B42*M$32","v":{"$error":"#VALUE!"}},{"$f":"+SUMIFS('Detall - Detalle'!$U:$U,'Detall - Detalle'!$S:$S,N$33,'Detall - Detalle'!$Z:$Z,'Pressupost - Pressupuesto'!$A12)+$B42*N$32","v":{"$error":"#VALUE!"}},{"$f":"+SUMIFS('Detall - Detalle'!$U:$U,'Detall - Detalle'!$S:$S,O$33,'Detall - Detalle'!$Z:$Z,'Pressupost - Pressupuesto'!$A12)+$B42*O$32","v":{"$error":"#VALUE!"}},{"$f":"+SUMIFS('Detall - Detalle'!$U:$U,'Detall - Detalle'!$S:$S,P$33,'Detall - Detalle'!$Z:$Z,'Pressupost - Pressupuesto'!$A12)+$B42*P$32","v":{"$error":"#VALUE!"}},{"$f":"+SUMIFS('Detall - Detalle'!$U:$U,'Detall - Detalle'!$S:$S,Q$33,'Detall - Detalle'!$Z:$Z,'Pressupost - Pressupuesto'!$A12)+$B42*Q$32","v":{"$error":"#VALUE!"}},{"$f":"+SUMIFS('Detall - Detalle'!$U:$U,'Detall - Detalle'!$S:$S,R$33,'Detall - Detalle'!$Z:$Z,'Pressupost - Pressupuesto'!$A12)+$B42*R$32","v":{"$error":"#VALUE!"}},{"$f":"+SUMIFS('Detall - Detalle'!$U:$U,'Detall - Detalle'!$S:$S,S$33,'Detall - Detalle'!$Z:$Z,'Pressupost - Pressupuesto'!$A12)+$B42*S$32","v":{"$error":"#VALUE!"}},{"$f":"+SUMIFS('Detall - Detalle'!$U:$U,'Detall - Detalle'!$S:$S,T$33,'Detall - Detalle'!$Z:$Z,'Pressupost - Pressupuesto'!$A12)+$B42*T$32","v":{"$error":"#VALUE!"}},{"$f":"+SUMIFS('Detall - Detalle'!$U:$U,'Detall - Detalle'!$S:$S,U$33,'Detall - Detalle'!$Z:$Z,'Pressupost - Pressupuesto'!$A12)+$B42*U$32","v":{"$error":"#VALUE!"}},{"$f":"+SUMIFS('Detall - Detalle'!$U:$U,'Detall - Detalle'!$S:$S,V$33,'Detall - Detalle'!$Z:$Z,'Pressupost - Pressupuesto'!$A12)+$B42*V$32","v":{"$error":"#VALUE!"}}]
["a6 Reunions, conferències i formacions / Reuniones, conferencias y formaciones",{"$f":"+SUMIFS('Detall - Detalle'!$U:$U,'Detall - Detalle'!$S:$S,B$33,'Detall - Detalle'!$Z:$Z,'Pressupost - Pressupuesto'!$A12)","v":0},{"$f":"+SUMIFS('Detall - Detalle'!$U:$U,'Detall - Detalle'!$S:$S,C$33,'Detall - Detalle'!$Z:$Z,'Pressupost - Pressupuesto'!$A13)+$B43*C$32","v":0},{"$f":"+SUMIFS('Detall - Detalle'!$U:$U,'Detall - Detalle'!$S:$S,D$33,'Detall - Detalle'!$Z:$Z,'Pressupost - Pressupuesto'!$A13)+$B43*D$32","v":{"$error":"#VALUE!"}},{"$f":"+SUMIFS('Detall - Detalle'!$U:$U,'Detall - Detalle'!$S:$S,E$33,'Detall - Detalle'!$Z:$Z,'Pressupost - Pressupuesto'!$A13)+$B43*E$32","v":{"$error":"#VALUE!"}},{"$f":"+SUMIFS('Detall - Detalle'!$U:$U,'Detall - Detalle'!$S:$S,F$33,'Detall - Detalle'!$Z:$Z,'Pressupost - Pressupuesto'!$A13)+$B43*F$32","v":{"$error":"#VALUE!"}},{"$f":"+SUMIFS('Detall - Detalle'!$U:$U,'Detall - Detalle'!$S:$S,G$33,'Detall - Detalle'!$Z:$Z,'Pressupost - Pressupuesto'!$A13)+$B43*G$32","v":{"$error":"#VALUE!"}},{"$f":"+SUMIFS('Detall - Detalle'!$U:$U,'Detall - Detalle'!$S:$S,H$33,'Detall - Detalle'!$Z:$Z,'Pressupost - Pressupuesto'!$A13)+$B43*H$32","v":{"$error":"#VALUE!"}},{"$f":"+SUMIFS('Detall - Detalle'!$U:$U,'Detall - Detalle'!$S:$S,I$33,'Detall - Detalle'!$Z:$Z,'Pressupost - Pressupuesto'!$A13)+$B43*I$32","v":{"$error":"#VALUE!"}},{"$f":"+SUMIFS('Detall - Detalle'!$U:$U,'Detall - Detalle'!$S:$S,J$33,'Detall - Detalle'!$Z:$Z,'Pressupost - Pressupuesto'!$A13)+$B43*J$32","v":{"$error":"#VALUE!"}},{"$f":"+SUMIFS('Detall - Detalle'!$U:$U,'Detall - Detalle'!$S:$S,K$33,'Detall - Detalle'!$Z:$Z,'Pressupost - Pressupuesto'!$A13)+$B43*K$32","v":{"$error":"#VALUE!"}},{"$f":"+SUMIFS('Detall - Detalle'!$U:$U,'Detall - Detalle'!$S:$S,L$33,'Detall - Detalle'!$Z:$Z,'Pressupost - Pressupuesto'!$A13)+$B43*L$32","v":{"$error":"#VALUE!"}},{"$f":"+SUMIFS('Detall - Detalle'!$U:$U,'Detall - Detalle'!$S:$S,M$33,'Detall - Detalle'!$Z:$Z,'Pressupost - Pressupuesto'!$A13)+$B43*M$32","v":{"$error":"#VALUE!"}},{"$f":"+SUMIFS('Detall - Detalle'!$U:$U,'Detall - Detalle'!$S:$S,N$33,'Detall - Detalle'!$Z:$Z,'Pressupost - Pressupuesto'!$A13)+$B43*N$32","v":{"$error":"#VALUE!"}},{"$f":"+SUMIFS('Detall - Detalle'!$U:$U,'Detall - Detalle'!$S:$S,O$33,'Detall - Detalle'!$Z:$Z,'Pressupost - Pressupuesto'!$A13)+$B43*O$32","v":{"$error":"#VALUE!"}},{"$f":"+SUMIFS('Detall - Detalle'!$U:$U,'Detall - Detalle'!$S:$S,P$33,'Detall - Detalle'!$Z:$Z,'Pressupost - Pressupuesto'!$A13)+$B43*P$32","v":{"$error":"#VALUE!"}},{"$f":"+SUMIFS('Detall - Detalle'!$U:$U,'Detall - Detalle'!$S:$S,Q$33,'Detall - Detalle'!$Z:$Z,'Pressupost - Pressupuesto'!$A13)+$B43*Q$32","v":{"$error":"#VALUE!"}},{"$f":"+SUMIFS('Detall - Detalle'!$U:$U,'Detall - Detalle'!$S:$S,R$33,'Detall - Detalle'!$Z:$Z,'Pressupost - Pressupuesto'!$A13)+$B43*R$32","v":{"$error":"#VALUE!"}},{"$f":"+SUMIFS('Detall - Detalle'!$U:$U,'Detall - Detalle'!$S:$S,S$33,'Detall - Detalle'!$Z:$Z,'Pressupost - Pressupuesto'!$A13)+$B43*S$32","v":{"$error":"#VALUE!"}},{"$f":"+SUMIFS('Detall - Detalle'!$U:$U,'Detall - Detalle'!$S:$S,T$33,'Detall - Detalle'!$Z:$Z,'Pressupost - Pressupuesto'!$A13)+$B43*T$32","v":{"$error":"#VALUE!"}},{"$f":"+SUMIFS('Detall - Detalle'!$U:$U,'Detall - Detalle'!$S:$S,U$33,'Detall - Detalle'!$Z:$Z,'Pressupost - Pressupuesto'!$A13)+$B43*U$32","v":{"$error":"#VALUE!"}},{"$f":"+SUMIFS('Detall - Detalle'!$U:$U,'Detall - Detalle'!$S:$S,V$33,'Detall - Detalle'!$Z:$Z,'Pressupost - Pressupuesto'!$A13)+$B43*V$32","v":{"$error":"#VALUE!"}}]
["a7 Publicitat i difusió / Publicidad y difusión",{"$f":"+SUMIFS('Detall - Detalle'!$U:$U,'Detall - Detalle'!$S:$S,B$33,'Detall - Detalle'!$Z:$Z,'Pressupost - Pressupuesto'!$A13)","v":0},{"$f":"+SUMIFS('Detall - Detalle'!$U:$U,'Detall - Detalle'!$S:$S,C$33,'Detall - Detalle'!$Z:$Z,'Pressupost - Pressupuesto'!$A14)+$B44*C$32","v":0},{"$f":"+SUMIFS('Detall - Detalle'!$U:$U,'Detall - Detalle'!$S:$S,D$33,'Detall - Detalle'!$Z:$Z,'Pressupost - Pressupuesto'!$A14)+$B44*D$32","v":{"$error":"#VALUE!"}},{"$f":"+SUMIFS('Detall - Detalle'!$U:$U,'Detall - Detalle'!$S:$S,E$33,'Detall - Detalle'!$Z:$Z,'Pressupost - Pressupuesto'!$A14)+$B44*E$32","v":{"$error":"#VALUE!"}},{"$f":"+SUMIFS('Detall - Detalle'!$U:$U,'Detall - Detalle'!$S:$S,F$33,'Detall - Detalle'!$Z:$Z,'Pressupost - Pressupuesto'!$A14)+$B44*F$32","v":{"$error":"#VALUE!"}},{"$f":"+SUMIFS('Detall - Detalle'!$U:$U,'Detall - Detalle'!$S:$S,G$33,'Detall - Detalle'!$Z:$Z,'Pressupost - Pressupuesto'!$A14)+$B44*G$32","v":{"$error":"#VALUE!"}},{"$f":"+SUMIFS('Detall - Detalle'!$U:$U,'Detall - Detalle'!$S:$S,H$33,'Detall - Detalle'!$Z:$Z,'Pressupost - Pressupuesto'!$A14)+$B44*H$32","v":{"$error":"#VALUE!"}},{"$f":"+SUMIFS('Detall - Detalle'!$U:$U,'Detall - Detalle'!$S:$S,I$33,'Detall - Detalle'!$Z:$Z,'Pressupost - Pressupuesto'!$A14)+$B44*I$32","v":{"$error":"#VALUE!"}},{"$f":"+SUMIFS('Detall - Detalle'!$U:$U,'Detall - Detalle'!$S:$S,J$33,'Detall - Detalle'!$Z:$Z,'Pressupost - Pressupuesto'!$A14)+$B44*J$32","v":{"$error":"#VALUE!"}},{"$f":"+SUMIFS('Detall - Detalle'!$U:$U,'Detall - Detalle'!$S:$S,K$33,'Detall - Detalle'!$Z:$Z,'Pressupost - Pressupuesto'!$A14)+$B44*K$32","v":{"$error":"#VALUE!"}},{"$f":"+SUMIFS('Detall - Detalle'!$U:$U,'Detall - Detalle'!$S:$S,L$33,'Detall - Detalle'!$Z:$Z,'Pressupost - Pressupuesto'!$A14)+$B44*L$32","v":{"$error":"#VALUE!"}},{"$f":"+SUMIFS('Detall - Detalle'!$U:$U,'Detall - Detalle'!$S:$S,M$33,'Detall - Detalle'!$Z:$Z,'Pressupost - Pressupuesto'!$A14)+$B44*M$32","v":{"$error":"#VALUE!"}},{"$f":"+SUMIFS('Detall - Detalle'!$U:$U,'Detall - Detalle'!$S:$S,N$33,'Detall - Detalle'!$Z:$Z,'Pressupost - Pressupuesto'!$A14)+$B44*N$32","v":{"$error":"#VALUE!"}},{"$f":"+SUMIFS('Detall - Detalle'!$U:$U,'Detall - Detalle'!$S:$S,O$33,'Detall - Detalle'!$Z:$Z,'Pressupost - Pressupuesto'!$A14)+$B44*O$32","v":{"$error":"#VALUE!"}},{"$f":"+SUMIFS('Detall - Detalle'!$U:$U,'Detall - Detalle'!$S:$S,P$33,'Detall - Detalle'!$Z:$Z,'Pressupost - Pressupuesto'!$A14)+$B44*P$32","v":{"$error":"#VALUE!"}},{"$f":"+SUMIFS('Detall - Detalle'!$U:$U,'Detall - Detalle'!$S:$S,Q$33,'Detall - Detalle'!$Z:$Z,'Pressupost - Pressupuesto'!$A14)+$B44*Q$32","v":{"$error":"#VALUE!"}},{"$f":"+SUMIFS('Detall - Detalle'!$U:$U,'Detall - Detalle'!$S:$S,R$33,'Detall - Detalle'!$Z:$Z,'Pressupost - Pressupuesto'!$A14)+$B44*R$32","v":{"$error":"#VALUE!"}},{"$f":"+SUMIFS('Detall - Detalle'!$U:$U,'Detall - Detalle'!$S:$S,S$33,'Detall - Detalle'!$Z:$Z,'Pressupost - Pressupuesto'!$A14)+$B44*S$32","v":{"$error":"#VALUE!"}},{"$f":"+SUMIFS('Detall - Detalle'!$U:$U,'Detall - Detalle'!$S:$S,T$33,'Detall - Detalle'!$Z:$Z,'Pressupost - Pressupuesto'!$A14)+$B44*T$32","v":{"$error":"#VALUE!"}},{"$f":"+SUMIFS('Detall - Detalle'!$U:$U,'Detall - Detalle'!$S:$S,U$33,'Detall - Detalle'!$Z:$Z,'Pressupost - Pressupuesto'!$A14)+$B44*U$32","v":{"$error":"#VALUE!"}},{"$f":"+SUMIFS('Detall - Detalle'!$U:$U,'Detall - Detalle'!$S:$S,V$33,'Detall - Detalle'!$Z:$Z,'Pressupost - Pressupuesto'!$A14)+$B44*V$32","v":{"$error":"#VALUE!"}}]
["a8 Publicacions / Publicaciones",{"$f":"+SUMIFS('Detall - Detalle'!$U:$U,'Detall - Detalle'!$S:$S,B$33,'Detall - Detalle'!$Z:$Z,'Pressupost - Pressupuesto'!$A14)","v":0},{"$f":"+SUMIFS('Detall - Detalle'!$U:$U,'Detall - Detalle'!$S:$S,C$33,'Detall - Detalle'!$Z:$Z,'Pressupost - Pressupuesto'!$A15)+$B45*C$32","v":0},{"$f":"+SUMIFS('Detall - Detalle'!$U:$U,'Detall - Detalle'!$S:$S,D$33,'Detall - Detalle'!$Z:$Z,'Pressupost - Pressupuesto'!$A15)+$B45*D$32","v":{"$error":"#VALUE!"}},{"$f":"+SUMIFS('Detall - Detalle'!$U:$U,'Detall - Detalle'!$S:$S,E$33,'Detall - Detalle'!$Z:$Z,'Pressupost - Pressupuesto'!$A15)+$B45*E$32","v":{"$error":"#VALUE!"}},{"$f":"+SUMIFS('Detall - Detalle'!$U:$U,'Detall - Detalle'!$S:$S,F$33,'Detall - Detalle'!$Z:$Z,'Pressupost - Pressupuesto'!$A15)+$B45*F$32","v":{"$error":"#VALUE!"}},{"$f":"+SUMIFS('Detall - Detalle'!$U:$U,'Detall - Detalle'!$S:$S,G$33,'Detall - Detalle'!$Z:$Z,'Pressupost - Pressupuesto'!$A15)+$B45*G$32","v":{"$error":"#VALUE!"}},{"$f":"+SUMIFS('Detall - Detalle'!$U:$U,'Detall - Detalle'!$S:$S,H$33,'Detall - Detalle'!$Z:$Z,'Pressupost - Pressupuesto'!$A15)+$B45*H$32","v":{"$error":"#VALUE!"}},{"$f":"+SUMIFS('Detall - Detalle'!$U:$U,'Detall - Detalle'!$S:$S,I$33,'Detall - Detalle'!$Z:$Z,'Pressupost - Pressupuesto'!$A15)+$B45*I$32","v":{"$error":"#VALUE!"}},{"$f":"+SUMIFS('Detall - Detalle'!$U:$U,'Detall - Detalle'!$S:$S,J$33,'Detall - Detalle'!$Z:$Z,'Pressupost - Pressupuesto'!$A15)+$B45*J$32","v":{"$error":"#VALUE!"}},{"$f":"+SUMIFS('Detall - Detalle'!$U:$U,'Detall - Detalle'!$S:$S,K$33,'Detall - Detalle'!$Z:$Z,'Pressupost - Pressupuesto'!$A15)+$B45*K$32","v":{"$error":"#VALUE!"}},{"$f":"+SUMIFS('Detall - Detalle'!$U:$U,'Detall - Detalle'!$S:$S,L$33,'Detall - Detalle'!$Z:$Z,'Pressupost - Pressupuesto'!$A15)+$B45*L$32","v":{"$error":"#VALUE!"}},{"$f":"+SUMIFS('Detall - Detalle'!$U:$U,'Detall - Detalle'!$S:$S,M$33,'Detall - Detalle'!$Z:$Z,'Pressupost - Pressupuesto'!$A15)+$B45*M$32","v":{"$error":"#VALUE!"}},{"$f":"+SUMIFS('Detall - Detalle'!$U:$U,'Detall - Detalle'!$S:$S,N$33,'Detall - Detalle'!$Z:$Z,'Pressupost - Pressupuesto'!$A15)+$B45*N$32","v":{"$error":"#VALUE!"}},{"$f":"+SUMIFS('Detall - Detalle'!$U:$U,'Detall - Detalle'!$S:$S,O$33,'Detall - Detalle'!$Z:$Z,'Pressupost - Pressupuesto'!$A15)+$B45*O$32","v":{"$error":"#VALUE!"}},{"$f":"+SUMIFS('Detall - Detalle'!$U:$U,'Detall - Detalle'!$S:$S,P$33,'Detall - Detalle'!$Z:$Z,'Pressupost - Pressupuesto'!$A15)+$B45*P$32","v":{"$error":"#VALUE!"}},{"$f":"+SUMIFS('Detall - Detalle'!$U:$U,'Detall - Detalle'!$S:$S,Q$33,'Detall - Detalle'!$Z:$Z,'Pressupost - Pressupuesto'!$A15)+$B45*Q$32","v":{"$error":"#VALUE!"}},{"$f":"+SUMIFS('Detall - Detalle'!$U:$U,'Detall - Detalle'!$S:$S,R$33,'Detall - Detalle'!$Z:$Z,'Pressupost - Pressupuesto'!$A15)+$B45*R$32","v":{"$error":"#VALUE!"}},{"$f":"+SUMIFS('Detall - Detalle'!$U:$U,'Detall - Detalle'!$S:$S,S$33,'Detall - Detalle'!$Z:$Z,'Pressupost - Pressupuesto'!$A15)+$B45*S$32","v":{"$error":"#VALUE!"}},{"$f":"+SUMIFS('Detall - Detalle'!$U:$U,'Detall - Detalle'!$S:$S,T$33,'Detall - Detalle'!$Z:$Z,'Pressupost - Pressupuesto'!$A15)+$B45*T$32","v":{"$error":"#VALUE!"}},{"$f":"+SUMIFS('Detall - Detalle'!$U:$U,'Detall - Detalle'!$S:$S,U$33,'Detall - Detalle'!$Z:$Z,'Pressupost - Pressupuesto'!$A15)+$B45*U$32","v":{"$error":"#VALUE!"}},{"$f":"+SUMIFS('Detall - Detalle'!$U:$U,'Detall - Detalle'!$S:$S,V$33,'Detall - Detalle'!$Z:$Z,'Pressupost - Pressupuesto'!$A15)+$B45*V$32","v":{"$error":"#VALUE!"}}]
["a9 Treballs tècnics i professionals / Trabajos técnicos y profesionales",{"$f":"+SUMIFS('Detall - Detalle'!$U:$U,'Detall - Detalle'!$S:$S,B$33,'Detall - Detalle'!$Z:$Z,'Pressupost - Pressupuesto'!$A15)","v":0},{"$f":"+SUMIFS('Detall - Detalle'!$U:$U,'Detall - Detalle'!$S:$S,C$33,'Detall - Detalle'!$Z:$Z,'Pressupost - Pressupuesto'!$A16)+$B46*C$32","v":0},{"$f":"+SUMIFS('Detall - Detalle'!$U:$U,'Detall - Detalle'!$S:$S,D$33,'Detall - Detalle'!$Z:$Z,'Pressupost - Pressupuesto'!$A16)+$B46*D$32","v":{"$error":"#VALUE!"}},{"$f":"+SUMIFS('Detall - Detalle'!$U:$U,'Detall - Detalle'!$S:$S,E$33,'Detall - Detalle'!$Z:$Z,'Pressupost - Pressupuesto'!$A16)+$B46*E$32","v":{"$error":"#VALUE!"}},{"$f":"+SUMIFS('Detall - Detalle'!$U:$U,'Detall - Detalle'!$S:$S,F$33,'Detall - Detalle'!$Z:$Z,'Pressupost - Pressupuesto'!$A16)+$B46*F$32","v":{"$error":"#VALUE!"}},{"$f":"+SUMIFS('Detall - Detalle'!$U:$U,'Detall - Detalle'!$S:$S,G$33,'Detall - Detalle'!$Z:$Z,'Pressupost - Pressupuesto'!$A16)+$B46*G$32","v":{"$error":"#VALUE!"}},{"$f":"+SUMIFS('Detall - Detalle'!$U:$U,'Detall - Detalle'!$S:$S,H$33,'Detall - Detalle'!$Z:$Z,'Pressupost - Pressupuesto'!$A16)+$B46*H$32","v":{"$error":"#VALUE!"}},{"$f":"+SUMIFS('Detall - Detalle'!$U:$U,'Detall - Detalle'!$S:$S,I$33,'Detall - Detalle'!$Z:$Z,'Pressupost - Pressupuesto'!$A16)+$B46*I$32","v":{"$error":"#VALUE!"}},{"$f":"+SUMIFS('Detall - Detalle'!$U:$U,'Detall - Detalle'!$S:$S,J$33,'Detall - Detalle'!$Z:$Z,'Pressupost - Pressupuesto'!$A16)+$B46*J$32","v":{"$error":"#VALUE!"}},{"$f":"+SUMIFS('Detall - Detalle'!$U:$U,'Detall - Detalle'!$S:$S,K$33,'Detall - Detalle'!$Z:$Z,'Pressupost - Pressupuesto'!$A16)+$B46*K$32","v":{"$error":"#VALUE!"}},{"$f":"+SUMIFS('Detall - Detalle'!$U:$U,'Detall - Detalle'!$S:$S,L$33,'Detall - Detalle'!$Z:$Z,'Pressupost - Pressupuesto'!$A16)+$B46*L$32","v":{"$error":"#VALUE!"}},{"$f":"+SUMIFS('Detall - Detalle'!$U:$U,'Detall - Detalle'!$S:$S,M$33,'Detall - Detalle'!$Z:$Z,'Pressupost - Pressupuesto'!$A16)+$B46*M$32","v":{"$error":"#VALUE!"}},{"$f":"+SUMIFS('Detall - Detalle'!$U:$U,'Detall - Detalle'!$S:$S,N$33,'Detall - Detalle'!$Z:$Z,'Pressupost - Pressupuesto'!$A16)+$B46*N$32","v":{"$error":"#VALUE!"}},{"$f":"+SUMIFS('Detall - Detalle'!$U:$U,'Detall - Detalle'!$S:$S,O$33,'Detall - Detalle'!$Z:$Z,'Pressupost - Pressupuesto'!$A16)+$B46*O$32","v":{"$error":"#VALUE!"}},{"$f":"+SUMIFS('Detall - Detalle'!$U:$U,'Detall - Detalle'!$S:$S,P$33,'Detall - Detalle'!$Z:$Z,'Pressupost - Pressupuesto'!$A16)+$B46*P$32","v":{"$error":"#VALUE!"}},{"$f":"+SUMIFS('Detall - Detalle'!$U:$U,'Detall - Detalle'!$S:$S,Q$33,'Detall - Detalle'!$Z:$Z,'Pressupost - Pressupuesto'!$A16)+$B46*Q$32","v":{"$error":"#VALUE!"}},{"$f":"+SUMIFS('Detall - Detalle'!$U:$U,'Detall - Detalle'!$S:$S,R$33,'Detall - Detalle'!$Z:$Z,'Pressupost - Pressupuesto'!$A16)+$B46*R$32","v":{"$error":"#VALUE!"}},{"$f":"+SUMIFS('Detall - Detalle'!$U:$U,'Detall - Detalle'!$S:$S,S$33,'Detall - Detalle'!$Z:$Z,'Pressupost - Pressupuesto'!$A16)+$B46*S$32","v":{"$error":"#VALUE!"}},{"$f":"+SUMIFS('Detall - Detalle'!$U:$U,'Detall - Detalle'!$S:$S,T$33,'Detall - Detalle'!$Z:$Z,'Pressupost - Pressupuesto'!$A16)+$B46*T$32","v":{"$error":"#VALUE!"}},{"$f":"+SUMIFS('Detall - Detalle'!$U:$U,'Detall - Detalle'!$S:$S,U$33,'Detall - Detalle'!$Z:$Z,'Pressupost - Pressupuesto'!$A16)+$B46*U$32","v":{"$error":"#VALUE!"}},{"$f":"+SUMIFS('Detall - Detalle'!$U:$U,'Detall - Detalle'!$S:$S,V$33,'Detall - Detalle'!$Z:$Z,'Pressupost - Pressupuesto'!$A16)+$B46*V$32","v":{"$error":"#VALUE!"}}]
["a10 Identificació i formulació / Identificación y formulación",{"$f":"+SUMIFS('Detall - Detalle'!$U:$U,'Detall - Detalle'!$S:$S,B$33,'Detall - Detalle'!$Z:$Z,'Pressupost - Pressupuesto'!$A16)","v":0},{"$f":"+SUMIFS('Detall - Detalle'!$U:$U,'Detall - Detalle'!$S:$S,C$33,'Detall - Detalle'!$Z:$Z,'Pressupost - Pressupuesto'!$A17)+$B47*C$32","v":0},{"$f":"+SUMIFS('Detall - Detalle'!$U:$U,'Detall - Detalle'!$S:$S,D$33,'Detall - Detalle'!$Z:$Z,'Pressupost - Pressupuesto'!$A17)+$B47*D$32","v":{"$error":"#VALUE!"}},{"$f":"+SUMIFS('Detall - Detalle'!$U:$U,'Detall - Detalle'!$S:$S,E$33,'Detall - Detalle'!$Z:$Z,'Pressupost - Pressupuesto'!$A17)+$B47*E$32","v":{"$error":"#VALUE!"}},{"$f":"+SUMIFS('Detall - Detalle'!$U:$U,'Detall - Detalle'!$S:$S,F$33,'Detall - Detalle'!$Z:$Z,'Pressupost - Pressupuesto'!$A17)+$B47*F$32","v":{"$error":"#VALUE!"}},{"$f":"+SUMIFS('Detall - Detalle'!$U:$U,'Detall - Detalle'!$S:$S,G$33,'Detall - Detalle'!$Z:$Z,'Pressupost - Pressupuesto'!$A17)+$B47*G$32","v":{"$error":"#VALUE!"}},{"$f":"+SUMIFS('Detall - Detalle'!$U:$U,'Detall - Detalle'!$S:$S,H$33,'Detall - Detalle'!$Z:$Z,'Pressupost - Pressupuesto'!$A17)+$B47*H$32","v":{"$error":"#VALUE!"}},{"$f":"+SUMIFS('Detall - Detalle'!$U:$U,'Detall - Detalle'!$S:$S,I$33,'Detall - Detalle'!$Z:$Z,'Pressupost - Pressupuesto'!$A17)+$B47*I$32","v":{"$error":"#VALUE!"}},{"$f":"+SUMIFS('Detall - Detalle'!$U:$U,'Detall - Detalle'!$S:$S,J$33,'Detall - Detalle'!$Z:$Z,'Pressupost - Pressupuesto'!$A17)+$B47*J$32","v":{"$error":"#VALUE!"}},{"$f":"+SUMIFS('Detall - Detalle'!$U:$U,'Detall - Detalle'!$S:$S,K$33,'Detall - Detalle'!$Z:$Z,'Pressupost - Pressupuesto'!$A17)+$B47*K$32","v":{"$error":"#VALUE!"}},{"$f":"+SUMIFS('Detall - Detalle'!$U:$U,'Detall - Detalle'!$S:$S,L$33,'Detall - Detalle'!$Z:$Z,'Pressupost - Pressupuesto'!$A17)+$B47*L$32","v":{"$error":"#VALUE!"}},{"$f":"+SUMIFS('Detall - Detalle'!$U:$U,'Detall - Detalle'!$S:$S,M$33,'Detall - Detalle'!$Z:$Z,'Pressupost - Pressupuesto'!$A17)+$B47*M$32","v":{"$error":"#VALUE!"}},{"$f":"+SUMIFS('Detall - Detalle'!$U:$U,'Detall - Detalle'!$S:$S,N$33,'Detall - Detalle'!$Z:$Z,'Pressupost - Pressupuesto'!$A17)+$B47*N$32","v":{"$error":"#VALUE!"}},{"$f":"+SUMIFS('Detall - Detalle'!$U:$U,'Detall - Detalle'!$S:$S,O$33,'Detall - Detalle'!$Z:$Z,'Pressupost - Pressupuesto'!$A17)+$B47*O$32","v":{"$error":"#VALUE!"}},{"$f":"+SUMIFS('Detall - Detalle'!$U:$U,'Detall - Detalle'!$S:$S,P$33,'Detall - Detalle'!$Z:$Z,'Pressupost - Pressupuesto'!$A17)+$B47*P$32","v":{"$error":"#VALUE!"}},{"$f":"+SUMIFS('Detall - Detalle'!$U:$U,'Detall - Detalle'!$S:$S,Q$33,'Detall - Detalle'!$Z:$Z,'Pressupost - Pressupuesto'!$A17)+$B47*Q$32","v":{"$error":"#VALUE!"}},{"$f":"+SUMIFS('Detall - Detalle'!$U:$U,'Detall - Detalle'!$S:$S,R$33,'Detall - Detalle'!$Z:$Z,'Pressupost - Pressupuesto'!$A17)+$B47*R$32","v":{"$error":"#VALUE!"}},{"$f":"+SUMIFS('Detall - Detalle'!$U:$U,'Detall - Detalle'!$S:$S,S$33,'Detall - Detalle'!$Z:$Z,'Pressupost - Pressupuesto'!$A17)+$B47*S$32","v":{"$error":"#VALUE!"}},{"$f":"+SUMIFS('Detall - Detalle'!$U:$U,'Detall - Detalle'!$S:$S,T$33,'Detall - Detalle'!$Z:$Z,'Pressupost - Pressupuesto'!$A17)+$B47*T$32","v":{"$error":"#VALUE!"}},{"$f":"+SUMIFS('Detall - Detalle'!$U:$U,'Detall - Detalle'!$S:$S,U$33,'Detall - Detalle'!$Z:$Z,'Pressupost - Pressupuesto'!$A17)+$B47*U$32","v":{"$error":"#VALUE!"}},{"$f":"+SUMIFS('Detall - Detalle'!$U:$U,'Detall - Detalle'!$S:$S,V$33,'Detall - Detalle'!$Z:$Z,'Pressupost - Pressupuesto'!$A17)+$B47*V$32","v":{"$error":"#VALUE!"}}]
["a11 Avaluació / Evaluación",{"$f":"+SUMIFS('Detall - Detalle'!$U:$U,'Detall - Detalle'!$S:$S,B$33,'Detall - Detalle'!$Z:$Z,'Pressupost - Pressupuesto'!$A17)","v":0},{"$f":"+SUMIFS('Detall - Detalle'!$U:$U,'Detall - Detalle'!$S:$S,C$33,'Detall - Detalle'!$Z:$Z,'Pressupost - Pressupuesto'!$A18)+$B48*C$32","v":0},{"$f":"+SUMIFS('Detall - Detalle'!$U:$U,'Detall - Detalle'!$S:$S,D$33,'Detall - Detalle'!$Z:$Z,'Pressupost - Pressupuesto'!$A18)+$B48*D$32","v":{"$error":"#VALUE!"}},{"$f":"+SUMIFS('Detall - Detalle'!$U:$U,'Detall - Detalle'!$S:$S,E$33,'Detall - Detalle'!$Z:$Z,'Pressupost - Pressupuesto'!$A18)+$B48*E$32","v":{"$error":"#VALUE!"}},{"$f":"+SUMIFS('Detall - Detalle'!$U:$U,'Detall - Detalle'!$S:$S,F$33,'Detall - Detalle'!$Z:$Z,'Pressupost - Pressupuesto'!$A18)+$B48*F$32","v":{"$error":"#VALUE!"}},{"$f":"+SUMIFS('Detall - Detalle'!$U:$U,'Detall - Detalle'!$S:$S,G$33,'Detall - Detalle'!$Z:$Z,'Pressupost - Pressupuesto'!$A18)+$B48*G$32","v":{"$error":"#VALUE!"}},{"$f":"+SUMIFS('Detall - Detalle'!$U:$U,'Detall - Detalle'!$S:$S,H$33,'Detall - Detalle'!$Z:$Z,'Pressupost - Pressupuesto'!$A18)+$B48*H$32","v":{"$error":"#VALUE!"}},{"$f":"+SUMIFS('Detall - Detalle'!$U:$U,'Detall - Detalle'!$S:$S,I$33,'Detall - Detalle'!$Z:$Z,'Pressupost - Pressupuesto'!$A18)+$B48*I$32","v":{"$error":"#VALUE!"}},{"$f":"+SUMIFS('Detall - Detalle'!$U:$U,'Detall - Detalle'!$S:$S,J$33,'Detall - Detalle'!$Z:$Z,'Pressupost - Pressupuesto'!$A18)+$B48*J$32","v":{"$error":"#VALUE!"}},{"$f":"+SUMIFS('Detall - Detalle'!$U:$U,'Detall - Detalle'!$S:$S,K$33,'Detall - Detalle'!$Z:$Z,'Pressupost - Pressupuesto'!$A18)+$B48*K$32","v":{"$error":"#VALUE!"}},{"$f":"+SUMIFS('Detall - Detalle'!$U:$U,'Detall - Detalle'!$S:$S,L$33,'Detall - Detalle'!$Z:$Z,'Pressupost - Pressupuesto'!$A18)+$B48*L$32","v":{"$error":"#VALUE!"}},{"$f":"+SUMIFS('Detall - Detalle'!$U:$U,'Detall - Detalle'!$S:$S,M$33,'Detall - Detalle'!$Z:$Z,'Pressupost - Pressupuesto'!$A18)+$B48*M$32","v":{"$error":"#VALUE!"}},{"$f":"+SUMIFS('Detall - Detalle'!$U:$U,'Detall - Detalle'!$S:$S,N$33,'Detall - Detalle'!$Z:$Z,'Pressupost - Pressupuesto'!$A18)+$B48*N$32","v":{"$error":"#VALUE!"}},{"$f":"+SUMIFS('Detall - Detalle'!$U:$U,'Detall - Detalle'!$S:$S,O$33,'Detall - Detalle'!$Z:$Z,'Pressupost - Pressupuesto'!$A18)+$B48*O$32","v":{"$error":"#VALUE!"}},{"$f":"+SUMIFS('Detall - Detalle'!$U:$U,'Detall - Detalle'!$S:$S,P$33,'Detall - Detalle'!$Z:$Z,'Pressupost - Pressupuesto'!$A18)+$B48*P$32","v":{"$error":"#VALUE!"}},{"$f":"+SUMIFS('Detall - Detalle'!$U:$U,'Detall - Detalle'!$S:$S,Q$33,'Detall - Detalle'!$Z:$Z,'Pressupost - Pressupuesto'!$A18)+$B48*Q$32","v":{"$error":"#VALUE!"}},{"$f":"+SUMIFS('Detall - Detalle'!$U:$U,'Detall - Detalle'!$S:$S,R$33,'Detall - Detalle'!$Z:$Z,'Pressupost - Pressupuesto'!$A18)+$B48*R$32","v":{"$error":"#VALUE!"}},{"$f":"+SUMIFS('Detall - Detalle'!$U:$U,'Detall - Detalle'!$S:$S,S$33,'Detall - Detalle'!$Z:$Z,'Pressupost - Pressupuesto'!$A18)+$B48*S$32","v":{"$error":"#VALUE!"}},{"$f":"+SUMIFS('Detall - Detalle'!$U:$U,'Detall - Detalle'!$S:$S,T$33,'Detall - Detalle'!$Z:$Z,'Pressupost - Pressupuesto'!$A18)+$B48*T$32","v":{"$error":"#VALUE!"}},{"$f":"+SUMIFS('Detall - Detalle'!$U:$U,'Detall - Detalle'!$S:$S,U$33,'Detall - Detalle'!$Z:$Z,'Pressupost - Pressupuesto'!$A18)+$B48*U$32","v":{"$error":"#VALUE!"}},{"$f":"+SUMIFS('Detall - Detalle'!$U:$U,'Detall - Detalle'!$S:$S,V$33,'Detall - Detalle'!$Z:$Z,'Pressupost - Pressupuesto'!$A18)+$B48*V$32","v":{"$error":"#VALUE!"}}]
["a12 Dietes, locomoció, trasllats i allotjaments / Dietas, locomoción, traslados y alojamientos",{"$f":"+SUMIFS('Detall - Detalle'!$U:$U,'Detall - Detalle'!$S:$S,B$33,'Detall - Detalle'!$Z:$Z,'Pressupost - Pressupuesto'!$A18)","v":0},{"$f":"+SUMIFS('Detall - Detalle'!$U:$U,'Detall - Detalle'!$S:$S,C$33,'Detall - Detalle'!$Z:$Z,'Pressupost - Pressupuesto'!$A19)+$B49*C$32","v":0},{"$f":"+SUMIFS('Detall - Detalle'!$U:$U,'Detall - Detalle'!$S:$S,D$33,'Detall - Detalle'!$Z:$Z,'Pressupost - Pressupuesto'!$A19)+$B49*D$32","v":{"$error":"#VALUE!"}},{"$f":"+SUMIFS('Detall - Detalle'!$U:$U,'Detall - Detalle'!$S:$S,E$33,'Detall - Detalle'!$Z:$Z,'Pressupost - Pressupuesto'!$A19)+$B49*E$32","v":{"$error":"#VALUE!"}},{"$f":"+SUMIFS('Detall - Detalle'!$U:$U,'Detall - Detalle'!$S:$S,F$33,'Detall - Detalle'!$Z:$Z,'Pressupost - Pressupuesto'!$A19)+$B49*F$32","v":{"$error":"#VALUE!"}},{"$f":"+SUMIFS('Detall - Detalle'!$U:$U,'Detall - Detalle'!$S:$S,G$33,'Detall - Detalle'!$Z:$Z,'Pressupost - Pressupuesto'!$A19)+$B49*G$32","v":{"$error":"#VALUE!"}},{"$f":"+SUMIFS('Detall - Detalle'!$U:$U,'Detall - Detalle'!$S:$S,H$33,'Detall - Detalle'!$Z:$Z,'Pressupost - Pressupuesto'!$A19)+$B49*H$32","v":{"$error":"#VALUE!"}},{"$f":"+SUMIFS('Detall - Detalle'!$U:$U,'Detall - Detalle'!$S:$S,I$33,'Detall - Detalle'!$Z:$Z,'Pressupost - Pressupuesto'!$A19)+$B49*I$32","v":{"$error":"#VALUE!"}},{"$f":"+SUMIFS('Detall - Detalle'!$U:$U,'Detall - Detalle'!$S:$S,J$33,'Detall - Detalle'!$Z:$Z,'Pressupost - Pressupuesto'!$A19)+$B49*J$32","v":{"$error":"#VALUE!"}},{"$f":"+SUMIFS('Detall - Detalle'!$U:$U,'Detall - Detalle'!$S:$S,K$33,'Detall - Detalle'!$Z:$Z,'Pressupost - Pressupuesto'!$A19)+$B49*K$32","v":{"$error":"#VALUE!"}},{"$f":"+SUMIFS('Detall - Detalle'!$U:$U,'Detall - Detalle'!$S:$S,L$33,'Detall - Detalle'!$Z:$Z,'Pressupost - Pressupuesto'!$A19)+$B49*L$32","v":{"$error":"#VALUE!"}},{"$f":"+SUMIFS('Detall - Detalle'!$U:$U,'Detall - Detalle'!$S:$S,M$33,'Detall - Detalle'!$Z:$Z,'Pressupost - Pressupuesto'!$A19)+$B49*M$32","v":{"$error":"#VALUE!"}},{"$f":"+SUMIFS('Detall - Detalle'!$U:$U,'Detall - Detalle'!$S:$S,N$33,'Detall - Detalle'!$Z:$Z,'Pressupost - Pressupuesto'!$A19)+$B49*N$32","v":{"$error":"#VALUE!"}},{"$f":"+SUMIFS('Detall - Detalle'!$U:$U,'Detall - Detalle'!$S:$S,O$33,'Detall - Detalle'!$Z:$Z,'Pressupost - Pressupuesto'!$A19)+$B49*O$32","v":{"$error":"#VALUE!"}},{"$f":"+SUMIFS('Detall - Detalle'!$U:$U,'Detall - Detalle'!$S:$S,P$33,'Detall - Detalle'!$Z:$Z,'Pressupost - Pressupuesto'!$A19)+$B49*P$32","v":{"$error":"#VALUE!"}},{"$f":"+SUMIFS('Detall - Detalle'!$U:$U,'Detall - Detalle'!$S:$S,Q$33,'Detall - Detalle'!$Z:$Z,'Pressupost - Pressupuesto'!$A19)+$B49*Q$32","v":{"$error":"#VALUE!"}},{"$f":"+SUMIFS('Detall - Detalle'!$U:$U,'Detall - Detalle'!$S:$S,R$33,'Detall - Detalle'!$Z:$Z,'Pressupost - Pressupuesto'!$A19)+$B49*R$32","v":{"$error":"#VALUE!"}},{"$f":"+SUMIFS('Detall - Detalle'!$U:$U,'Detall - Detalle'!$S:$S,S$33,'Detall - Detalle'!$Z:$Z,'Pressupost - Pressupuesto'!$A19)+$B49*S$32","v":{"$error":"#VALUE!"}},{"$f":"+SUMIFS('Detall - Detalle'!$U:$U,'Detall - Detalle'!$S:$S,T$33,'Detall - Detalle'!$Z:$Z,'Pressupost - Pressupuesto'!$A19)+$B49*T$32","v":{"$error":"#VALUE!"}},{"$f":"+SUMIFS('Detall - Detalle'!$U:$U,'Detall - Detalle'!$S:$S,U$33,'Detall - Detalle'!$Z:$Z,'Pressupost - Pressupuesto'!$A19)+$B49*U$32","v":{"$error":"#VALUE!"}},{"$f":"+SUMIFS('Detall - Detalle'!$U:$U,'Detall - Detalle'!$S:$S,V$33,'Detall - Detalle'!$Z:$Z,'Pressupost - Pressupuesto'!$A19)+$B49*V$32","v":{"$error":"#VALUE!"}}]
["a13 Informe auditor / Informe de auditor",{"$f":"+SUMIFS('Detall - Detalle'!$U:$U,'Detall - Detalle'!$S:$S,B$33,'Detall - Detalle'!$Z:$Z,'Pressupost - Pressupuesto'!$A19)","v":0},{"$f":"+SUMIFS('Detall - Detalle'!$U:$U,'Detall - Detalle'!$S:$S,C$33,'Detall - Detalle'!$Z:$Z,'Pressupost - Pressupuesto'!$A20)+$B50*C$32","v":0},{"$f":"+SUMIFS('Detall - Detalle'!$U:$U,'Detall - Detalle'!$S:$S,D$33,'Detall - Detalle'!$Z:$Z,'Pressupost - Pressupuesto'!$A20)+$B50*D$32","v":{"$error":"#VALUE!"}},{"$f":"+SUMIFS('Detall - Detalle'!$U:$U,'Detall - Detalle'!$S:$S,E$33,'Detall - Detalle'!$Z:$Z,'Pressupost - Pressupuesto'!$A20)+$B50*E$32","v":{"$error":"#VALUE!"}},{"$f":"+SUMIFS('Detall - Detalle'!$U:$U,'Detall - Detalle'!$S:$S,F$33,'Detall - Detalle'!$Z:$Z,'Pressupost - Pressupuesto'!$A20)+$B50*F$32","v":{"$error":"#VALUE!"}},{"$f":"+SUMIFS('Detall - Detalle'!$U:$U,'Detall - Detalle'!$S:$S,G$33,'Detall - Detalle'!$Z:$Z,'Pressupost - Pressupuesto'!$A20)+$B50*G$32","v":{"$error":"#VALUE!"}},{"$f":"+SUMIFS('Detall - Detalle'!$U:$U,'Detall - Detalle'!$S:$S,H$33,'Detall - Detalle'!$Z:$Z,'Pressupost - Pressupuesto'!$A20)+$B50*H$32","v":{"$error":"#VALUE!"}},{"$f":"+SUMIFS('Detall - Detalle'!$U:$U,'Detall - Detalle'!$S:$S,I$33,'Detall - Detalle'!$Z:$Z,'Pressupost - Pressupuesto'!$A20)+$B50*I$32","v":{"$error":"#VALUE!"}},{"$f":"+SUMIFS('Detall - Detalle'!$U:$U,'Detall - Detalle'!$S:$S,J$33,'Detall - Detalle'!$Z:$Z,'Pressupost - Pressupuesto'!$A20)+$B50*J$32","v":{"$error":"#VALUE!"}},{"$f":"+SUMIFS('Detall - Detalle'!$U:$U,'Detall - Detalle'!$S:$S,K$33,'Detall - Detalle'!$Z:$Z,'Pressupost - Pressupuesto'!$A20)+$B50*K$32","v":{"$error":"#VALUE!"}},{"$f":"+SUMIFS('Detall - Detalle'!$U:$U,'Detall - Detalle'!$S:$S,L$33,'Detall - Detalle'!$Z:$Z,'Pressupost - Pressupuesto'!$A20)+$B50*L$32","v":{"$error":"#VALUE!"}},{"$f":"+SUMIFS('Detall - Detalle'!$U:$U,'Detall - Detalle'!$S:$S,M$33,'Detall - Detalle'!$Z:$Z,'Pressupost - Pressupuesto'!$A20)+$B50*M$32","v":{"$error":"#VALUE!"}},{"$f":"+SUMIFS('Detall - Detalle'!$U:$U,'Detall - Detalle'!$S:$S,N$33,'Detall - Detalle'!$Z:$Z,'Pressupost - Pressupuesto'!$A20)+$B50*N$32","v":{"$error":"#VALUE!"}},{"$f":"+SUMIFS('Detall - Detalle'!$U:$U,'Detall - Detalle'!$S:$S,O$33,'Detall - Detalle'!$Z:$Z,'Pressupost - Pressupuesto'!$A20)+$B50*O$32","v":{"$error":"#VALUE!"}},{"$f":"+SUMIFS('Detall - Detalle'!$U:$U,'Detall - Detalle'!$S:$S,P$33,'Detall - Detalle'!$Z:$Z,'Pressupost - Pressupuesto'!$A20)+$B50*P$32","v":{"$error":"#VALUE!"}},{"$f":"+SUMIFS('Detall - Detalle'!$U:$U,'Detall - Detalle'!$S:$S,Q$33,'Detall - Detalle'!$Z:$Z,'Pressupost - Pressupuesto'!$A20)+$B50*Q$32","v":{"$error":"#VALUE!"}},{"$f":"+SUMIFS('Detall - Detalle'!$U:$U,'Detall - Detalle'!$S:$S,R$33,'Detall - Detalle'!$Z:$Z,'Pressupost - Pressupuesto'!$A20)+$B50*R$32","v":{"$error":"#VALUE!"}},{"$f":"+SUMIFS('Detall - Detalle'!$U:$U,'Detall - Detalle'!$S:$S,S$33,'Detall - Detalle'!$Z:$Z,'Pressupost - Pressupuesto'!$A20)+$B50*S$32","v":{"$error":"#VALUE!"}},{"$f":"+SUMIFS('Detall - Detalle'!$U:$U,'Detall - Detalle'!$S:$S,T$33,'Detall - Detalle'!$Z:$Z,'Pressupost - Pressupuesto'!$A20)+$B50*T$32","v":{"$error":"#VALUE!"}},{"$f":"+SUMIFS('Detall - Detalle'!$U:$U,'Detall - Detalle'!$S:$S,U$33,'Detall - Detalle'!$Z:$Z,'Pressupost - Pressupuesto'!$A20)+$B50*U$32","v":{"$error":"#VALUE!"}},{"$f":"+SUMIFS('Detall - Detalle'!$U:$U,'Detall - Detalle'!$S:$S,V$33,'Detall - Detalle'!$Z:$Z,'Pressupost - Pressupuesto'!$A20)+$B50*V$32","v":{"$error":"#VALUE!"}}]
["a14 Despeses financeres / Gastos financieros",{"$f":"+SUMIFS('Detall - Detalle'!$U:$U,'Detall - Detalle'!$S:$S,B$33,'Detall - Detalle'!$Z:$Z,'Pressupost - Pressupuesto'!$A20)","v":0},{"$f":"+SUMIFS('Detall - Detalle'!$U:$U,'Detall - Detalle'!$S:$S,C$33,'Detall - Detalle'!$Z:$Z,'Pressupost - Pressupuesto'!$A21)+$B51*C$32","v":0},{"$f":"+SUMIFS('Detall - Detalle'!$U:$U,'Detall - Detalle'!$S:$S,D$33,'Detall - Detalle'!$Z:$Z,'Pressupost - Pressupuesto'!$A21)+$B51*D$32","v":{"$error":"#VALUE!"}},{"$f":"+SUMIFS('Detall - Detalle'!$U:$U,'Detall - Detalle'!$S:$S,E$33,'Detall - Detalle'!$Z:$Z,'Pressupost - Pressupuesto'!$A21)+$B51*E$32","v":{"$error":"#VALUE!"}},{"$f":"+SUMIFS('Detall - Detalle'!$U:$U,'Detall - Detalle'!$S:$S,F$33,'Detall - Detalle'!$Z:$Z,'Pressupost - Pressupuesto'!$A21)+$B51*F$32","v":{"$error":"#VALUE!"}},{"$f":"+SUMIFS('Detall - Detalle'!$U:$U,'Detall - Detalle'!$S:$S,G$33,'Detall - Detalle'!$Z:$Z,'Pressupost - Pressupuesto'!$A21)+$B51*G$32","v":{"$error":"#VALUE!"}},{"$f":"+SUMIFS('Detall - Detalle'!$U:$U,'Detall - Detalle'!$S:$S,H$33,'Detall - Detalle'!$Z:$Z,'Pressupost - Pressupuesto'!$A21)+$B51*H$32","v":{"$error":"#VALUE!"}},{"$f":"+SUMIFS('Detall - Detalle'!$U:$U,'Detall - Detalle'!$S:$S,I$33,'Detall - Detalle'!$Z:$Z,'Pressupost - Pressupuesto'!$A21)+$B51*I$32","v":{"$error":"#VALUE!"}},{"$f":"+SUMIFS('Detall - Detalle'!$U:$U,'Detall - Detalle'!$S:$S,J$33,'Detall - Detalle'!$Z:$Z,'Pressupost - Pressupuesto'!$A21)+$B51*J$32","v":{"$error":"#VALUE!"}},{"$f":"+SUMIFS('Detall - Detalle'!$U:$U,'Detall - Detalle'!$S:$S,K$33,'Detall - Detalle'!$Z:$Z,'Pressupost - Pressupuesto'!$A21)+$B51*K$32","v":{"$error":"#VALUE!"}},{"$f":"+SUMIFS('Detall - Detalle'!$U:$U,'Detall - Detalle'!$S:$S,L$33,'Detall - Detalle'!$Z:$Z,'Pressupost - Pressupuesto'!$A21)+$B51*L$32","v":{"$error":"#VALUE!"}},{"$f":"+SUMIFS('Detall - Detalle'!$U:$U,'Detall - Detalle'!$S:$S,M$33,'Detall - Detalle'!$Z:$Z,'Pressupost - Pressupuesto'!$A21)+$B51*M$32","v":{"$error":"#VALUE!"}},{"$f":"+SUMIFS('Detall - Detalle'!$U:$U,'Detall - Detalle'!$S:$S,N$33,'Detall - Detalle'!$Z:$Z,'Pressupost - Pressupuesto'!$A21)+$B51*N$32","v":{"$error":"#VALUE!"}},{"$f":"+SUMIFS('Detall - Detalle'!$U:$U,'Detall - Detalle'!$S:$S,O$33,'Detall - Detalle'!$Z:$Z,'Pressupost - Pressupuesto'!$A21)+$B51*O$32","v":{"$error":"#VALUE!"}},{"$f":"+SUMIFS('Detall - Detalle'!$U:$U,'Detall - Detalle'!$S:$S,P$33,'Detall - Detalle'!$Z:$Z,'Pressupost - Pressupuesto'!$A21)+$B51*P$32","v":{"$error":"#VALUE!"}},{"$f":"+SUMIFS('Detall - Detalle'!$U:$U,'Detall - Detalle'!$S:$S,Q$33,'Detall - Detalle'!$Z:$Z,'Pressupost - Pressupuesto'!$A21)+$B51*Q$32","v":{"$error":"#VALUE!"}},{"$f":"+SUMIFS('Detall - Detalle'!$U:$U,'Detall - Detalle'!$S:$S,R$33,'Detall - Detalle'!$Z:$Z,'Pressupost - Pressupuesto'!$A21)+$B51*R$32","v":{"$error":"#VALUE!"}},{"$f":"+SUMIFS('Detall - Detalle'!$U:$U,'Detall - Detalle'!$S:$S,S$33,'Detall - Detalle'!$Z:$Z,'Pressupost - Pressupuesto'!$A21)+$B51*S$32","v":{"$error":"#VALUE!"}},{"$f":"+SUMIFS('Detall - Detalle'!$U:$U,'Detall - Detalle'!$S:$S,T$33,'Detall - Detalle'!$Z:$Z,'Pressupost - Pressupuesto'!$A21)+$B51*T$32","v":{"$error":"#VALUE!"}},{"$f":"+SUMIFS('Detall - Detalle'!$U:$U,'Detall - Detalle'!$S:$S,U$33,'Detall - Detalle'!$Z:$Z,'Pressupost - Pressupuesto'!$A21)+$B51*U$32","v":{"$error":"#VALUE!"}},{"$f":"+SUMIFS('Detall - Detalle'!$U:$U,'Detall - Detalle'!$S:$S,V$33,'Detall - Detalle'!$Z:$Z,'Pressupost - Pressupuesto'!$A21)+$B51*V$32","v":{"$error":"#VALUE!"}}]
["a15 Despeses de suport legal / Gastos de soporte legal",{"$f":"+SUMIFS('Detall - Detalle'!$U:$U,'Detall - Detalle'!$S:$S,B$33,'Detall - Detalle'!$Z:$Z,'Pressupost - Pressupuesto'!$A21)","v":0},{"$f":"+SUMIFS('Detall - Detalle'!$U:$U,'Detall - Detalle'!$S:$S,C$33,'Detall - Detalle'!$Z:$Z,'Pressupost - Pressupuesto'!$A22)+$B52*C$32","v":0},{"$f":"+SUMIFS('Detall - Detalle'!$U:$U,'Detall - Detalle'!$S:$S,D$33,'Detall - Detalle'!$Z:$Z,'Pressupost - Pressupuesto'!$A22)+$B52*D$32","v":{"$error":"#VALUE!"}},{"$f":"+SUMIFS('Detall - Detalle'!$U:$U,'Detall - Detalle'!$S:$S,E$33,'Detall - Detalle'!$Z:$Z,'Pressupost - Pressupuesto'!$A22)+$B52*E$32","v":{"$error":"#VALUE!"}},{"$f":"+SUMIFS('Detall - Detalle'!$U:$U,'Detall - Detalle'!$S:$S,F$33,'Detall - Detalle'!$Z:$Z,'Pressupost - Pressupuesto'!$A22)+$B52*F$32","v":{"$error":"#VALUE!"}},{"$f":"+SUMIFS('Detall - Detalle'!$U:$U,'Detall - Detalle'!$S:$S,G$33,'Detall - Detalle'!$Z:$Z,'Pressupost - Pressupuesto'!$A22)+$B52*G$32","v":{"$error":"#VALUE!"}},{"$f":"+SUMIFS('Detall - Detalle'!$U:$U,'Detall - Detalle'!$S:$S,H$33,'Detall - Detalle'!$Z:$Z,'Pressupost - Pressupuesto'!$A22)+$B52*H$32","v":{"$error":"#VALUE!"}},{"$f":"+SUMIFS('Detall - Detalle'!$U:$U,'Detall - Detalle'!$S:$S,I$33,'Detall - Detalle'!$Z:$Z,'Pressupost - Pressupuesto'!$A22)+$B52*I$32","v":{"$error":"#VALUE!"}},{"$f":"+SUMIFS('Detall - Detalle'!$U:$U,'Detall - Detalle'!$S:$S,J$33,'Detall - Detalle'!$Z:$Z,'Pressupost - Pressupuesto'!$A22)+$B52*J$32","v":{"$error":"#VALUE!"}},{"$f":"+SUMIFS('Detall - Detalle'!$U:$U,'Detall - Detalle'!$S:$S,K$33,'Detall - Detalle'!$Z:$Z,'Pressupost - Pressupuesto'!$A22)+$B52*K$32","v":{"$error":"#VALUE!"}},{"$f":"+SUMIFS('Detall - Detalle'!$U:$U,'Detall - Detalle'!$S:$S,L$33,'Detall - Detalle'!$Z:$Z,'Pressupost - Pressupuesto'!$A22)+$B52*L$32","v":{"$error":"#VALUE!"}},{"$f":"+SUMIFS('Detall - Detalle'!$U:$U,'Detall - Detalle'!$S:$S,M$33,'Detall - Detalle'!$Z:$Z,'Pressupost - Pressupuesto'!$A22)+$B52*M$32","v":{"$error":"#VALUE!"}},{"$f":"+SUMIFS('Detall - Detalle'!$U:$U,'Detall - Detalle'!$S:$S,N$33,'Detall - Detalle'!$Z:$Z,'Pressupost - Pressupuesto'!$A22)+$B52*N$32","v":{"$error":"#VALUE!"}},{"$f":"+SUMIFS('Detall - Detalle'!$U:$U,'Detall - Detalle'!$S:$S,O$33,'Detall - Detalle'!$Z:$Z,'Pressupost - Pressupuesto'!$A22)+$B52*O$32","v":{"$error":"#VALUE!"}},{"$f":"+SUMIFS('Detall - Detalle'!$U:$U,'Detall - Detalle'!$S:$S,P$33,'Detall - Detalle'!$Z:$Z,'Pressupost - Pressupuesto'!$A22)+$B52*P$32","v":{"$error":"#VALUE!"}},{"$f":"+SUMIFS('Detall - Detalle'!$U:$U,'Detall - Detalle'!$S:$S,Q$33,'Detall - Detalle'!$Z:$Z,'Pressupost - Pressupuesto'!$A22)+$B52*Q$32","v":{"$error":"#VALUE!"}},{"$f":"+SUMIFS('Detall - Detalle'!$U:$U,'Detall - Detalle'!$S:$S,R$33,'Detall - Detalle'!$Z:$Z,'Pressupost - Pressupuesto'!$A22)+$B52*R$32","v":{"$error":"#VALUE!"}},{"$f":"+SUMIFS('Detall - Detalle'!$U:$U,'Detall - Detalle'!$S:$S,S$33,'Detall - Detalle'!$Z:$Z,'Pressupost - Pressupuesto'!$A22)+$B52*S$32","v":{"$error":"#VALUE!"}},{"$f":"+SUMIFS('Detall - Detalle'!$U:$U,'Detall - Detalle'!$S:$S,T$33,'Detall - Detalle'!$Z:$Z,'Pressupost - Pressupuesto'!$A22)+$B52*T$32","v":{"$error":"#VALUE!"}},{"$f":"+SUMIFS('Detall - Detalle'!$U:$U,'Detall - Detalle'!$S:$S,U$33,'Detall - Detalle'!$Z:$Z,'Pressupost - Pressupuesto'!$A22)+$B52*U$32","v":{"$error":"#VALUE!"}},{"$f":"+SUMIFS('Detall - Detalle'!$U:$U,'Detall - Detalle'!$S:$S,V$33,'Detall - Detalle'!$Z:$Z,'Pressupost - Pressupuesto'!$A22)+$B52*V$32","v":{"$error":"#VALUE!"}}]
["a16 Imprevistos / Imprevistos",{"$f":"+SUMIFS('Detall - Detalle'!$U:$U,'Detall - Detalle'!$S:$S,B$33,'Detall - Detalle'!$Z:$Z,'Pressupost - Pressupuesto'!$A22)","v":0},{"$f":"+SUMIFS('Detall - Detalle'!$U:$U,'Detall - Detalle'!$S:$S,C$33,'Detall - Detalle'!$Z:$Z,'Pressupost - Pressupuesto'!$A23)+$B53*C$32","v":0},{"$f":"+SUMIFS('Detall - Detalle'!$U:$U,'Detall - Detalle'!$S:$S,D$33,'Detall - Detalle'!$Z:$Z,'Pressupost - Pressupuesto'!$A23)+$B53*D$32","v":{"$error":"#VALUE!"}},{"$f":"+SUMIFS('Detall - Detalle'!$U:$U,'Detall - Detalle'!$S:$S,E$33,'Detall - Detalle'!$Z:$Z,'Pressupost - Pressupuesto'!$A23)+$B53*E$32","v":{"$error":"#VALUE!"}},{"$f":"+SUMIFS('Detall - Detalle'!$U:$U,'Detall - Detalle'!$S:$S,F$33,'Detall - Detalle'!$Z:$Z,'Pressupost - Pressupuesto'!$A23)+$B53*F$32","v":{"$error":"#VALUE!"}},{"$f":"+SUMIFS('Detall - Detalle'!$U:$U,'Detall - Detalle'!$S:$S,G$33,'Detall - Detalle'!$Z:$Z,'Pressupost - Pressupuesto'!$A23)+$B53*G$32","v":{"$error":"#VALUE!"}},{"$f":"+SUMIFS('Detall - Detalle'!$U:$U,'Detall - Detalle'!$S:$S,H$33,'Detall - Detalle'!$Z:$Z,'Pressupost - Pressupuesto'!$A23)+$B53*H$32","v":{"$error":"#VALUE!"}},{"$f":"+SUMIFS('Detall - Detalle'!$U:$U,'Detall - Detalle'!$S:$S,I$33,'Detall - Detalle'!$Z:$Z,'Pressupost - Pressupuesto'!$A23)+$B53*I$32","v":{"$error":"#VALUE!"}},{"$f":"+SUMIFS('Detall - Detalle'!$U:$U,'Detall - Detalle'!$S:$S,J$33,'Detall - Detalle'!$Z:$Z,'Pressupost - Pressupuesto'!$A23)+$B53*J$32","v":{"$error":"#VALUE!"}},{"$f":"+SUMIFS('Detall - Detalle'!$U:$U,'Detall - Detalle'!$S:$S,K$33,'Detall - Detalle'!$Z:$Z,'Pressupost - Pressupuesto'!$A23)+$B53*K$32","v":{"$error":"#VALUE!"}},{"$f":"+SUMIFS('Detall - Detalle'!$U:$U,'Detall - Detalle'!$S:$S,L$33,'Detall - Detalle'!$Z:$Z,'Pressupost - Pressupuesto'!$A23)+$B53*L$32","v":{"$error":"#VALUE!"}},{"$f":"+SUMIFS('Detall - Detalle'!$U:$U,'Detall - Detalle'!$S:$S,M$33,'Detall - Detalle'!$Z:$Z,'Pressupost - Pressupuesto'!$A23)+$B53*M$32","v":{"$error":"#VALUE!"}},{"$f":"+SUMIFS('Detall - Detalle'!$U:$U,'Detall - Detalle'!$S:$S,N$33,'Detall - Detalle'!$Z:$Z,'Pressupost - Pressupuesto'!$A23)+$B53*N$32","v":{"$error":"#VALUE!"}},{"$f":"+SUMIFS('Detall - Detalle'!$U:$U,'Detall - Detalle'!$S:$S,O$33,'Detall - Detalle'!$Z:$Z,'Pressupost - Pressupuesto'!$A23)+$B53*O$32","v":{"$error":"#VALUE!"}},{"$f":"+SUMIFS('Detall - Detalle'!$U:$U,'Detall - Detalle'!$S:$S,P$33,'Detall - Detalle'!$Z:$Z,'Pressupost - Pressupuesto'!$A23)+$B53*P$32","v":{"$error":"#VALUE!"}},{"$f":"+SUMIFS('Detall - Detalle'!$U:$U,'Detall - Detalle'!$S:$S,Q$33,'Detall - Detalle'!$Z:$Z,'Pressupost - Pressupuesto'!$A23)+$B53*Q$32","v":{"$error":"#VALUE!"}},{"$f":"+SUMIFS('Detall - Detalle'!$U:$U,'Detall - Detalle'!$S:$S,R$33,'Detall - Detalle'!$Z:$Z,'Pressupost - Pressupuesto'!$A23)+$B53*R$32","v":{"$error":"#VALUE!"}},{"$f":"+SUMIFS('Detall - Detalle'!$U:$U,'Detall - Detalle'!$S:$S,S$33,'Detall - Detalle'!$Z:$Z,'Pressupost - Pressupuesto'!$A23)+$B53*S$32","v":{"$error":"#VALUE!"}},{"$f":"+SUMIFS('Detall - Detalle'!$U:$U,'Detall - Detalle'!$S:$S,T$33,'Detall - Detalle'!$Z:$Z,'Pressupost - Pressupuesto'!$A23)+$B53*T$32","v":{"$error":"#VALUE!"}},{"$f":"+SUMIFS('Detall - Detalle'!$U:$U,'Detall - Detalle'!$S:$S,U$33,'Detall - Detalle'!$Z:$Z,'Pressupost - Pressupuesto'!$A23)+$B53*U$32","v":{"$error":"#VALUE!"}},{"$f":"+SUMIFS('Detall - Detalle'!$U:$U,'Detall - Detalle'!$S:$S,V$33,'Detall - Detalle'!$Z:$Z,'Pressupost - Pressupuesto'!$A23)+$B53*V$32","v":{"$error":"#VALUE!"}}]
["DESPESES DIRECTES D'INVERSIÓ (Capítol VII) / GASTOS DIRECTOS DE INVERSIÓN (Capítulo VII)",{"$f":"SUM(B55:B55)","v":0},0,{"$error":"#VALUE!"},{"$error":"#VALUE!"},{"$error":"#VALUE!"},{"$error":"#VALUE!"},{"$error":"#VALUE!"},{"$error":"#VALUE!"},{"$error":"#VALUE!"},{"$error":"#VALUE!"},{"$error":"#VALUE!"},{"$error":"#VALUE!"},{"$error":"#VALUE!"},{"$error":"#VALUE!"},{"$error":"#VALUE!"},{"$error":"#VALUE!"},{"$error":"#VALUE!"},{"$error":"#VALUE!"},{"$error":"#VALUE!"},{"$error":"#VALUE!"},{"$error":"#VALUE!"}]
["b1 Béns inventariables / Bienes inventariables",{"$f":"+SUMIFS('Detall - Detalle'!$U:$U,'Detall - Detalle'!$S:$S,B$33,'Detall - Detalle'!$Z:$Z,'Pressupost - Pressupuesto'!#REF!)","v":0},{"$f":"+SUMIFS('Detall - Detalle'!$U:$U,'Detall - Detalle'!$S:$S,C$33,'Detall - Detalle'!$Z:$Z,'Pressupost - Pressupuesto'!$A25)+$B55*C$32","v":0},{"$f":"+SUMIFS('Detall - Detalle'!$U:$U,'Detall - Detalle'!$S:$S,D$33,'Detall - Detalle'!$Z:$Z,'Pressupost - Pressupuesto'!$A25)+$B55*D$32","v":{"$error":"#VALUE!"}},{"$f":"+SUMIFS('Detall - Detalle'!$U:$U,'Detall - Detalle'!$S:$S,E$33,'Detall - Detalle'!$Z:$Z,'Pressupost - Pressupuesto'!$A25)+$B55*E$32","v":{"$error":"#VALUE!"}},{"$f":"+SUMIFS('Detall - Detalle'!$U:$U,'Detall - Detalle'!$S:$S,F$33,'Detall - Detalle'!$Z:$Z,'Pressupost - Pressupuesto'!$A25)+$B55*F$32","v":{"$error":"#VALUE!"}},{"$f":"+SUMIFS('Detall - Detalle'!$U:$U,'Detall - Detalle'!$S:$S,G$33,'Detall - Detalle'!$Z:$Z,'Pressupost - Pressupuesto'!$A25)+$B55*G$32","v":{"$error":"#VALUE!"}},{"$f":"+SUMIFS('Detall - Detalle'!$U:$U,'Detall - Detalle'!$S:$S,H$33,'Detall - Detalle'!$Z:$Z,'Pressupost - Pressupuesto'!$A25)+$B55*H$32","v":{"$error":"#VALUE!"}},{"$f":"+SUMIFS('Detall - Detalle'!$U:$U,'Detall - Detalle'!$S:$S,I$33,'Detall - Detalle'!$Z:$Z,'Pressupost - Pressupuesto'!$A25)+$B55*I$32","v":{"$error":"#VALUE!"}},{"$f":"+SUMIFS('Detall - Detalle'!$U:$U,'Detall - Detalle'!$S:$S,J$33,'Detall - Detalle'!$Z:$Z,'Pressupost - Pressupuesto'!$A25)+$B55*J$32","v":{"$error":"#VALUE!"}},{"$f":"+SUMIFS('Detall - Detalle'!$U:$U,'Detall - Detalle'!$S:$S,K$33,'Detall - Detalle'!$Z:$Z,'Pressupost - Pressupuesto'!$A25)+$B55*K$32","v":{"$error":"#VALUE!"}},{"$f":"+SUMIFS('Detall - Detalle'!$U:$U,'Detall - Detalle'!$S:$S,L$33,'Detall - Detalle'!$Z:$Z,'Pressupost - Pressupuesto'!$A25)+$B55*L$32","v":{"$error":"#VALUE!"}},{"$f":"+SUMIFS('Detall - Detalle'!$U:$U,'Detall - Detalle'!$S:$S,M$33,'Detall - Detalle'!$Z:$Z,'Pressupost - Pressupuesto'!$A25)+$B55*M$32","v":{"$error":"#VALUE!"}},{"$f":"+SUMIFS('Detall - Detalle'!$U:$U,'Detall - Detalle'!$S:$S,N$33,'Detall - Detalle'!$Z:$Z,'Pressupost - Pressupuesto'!$A25)+$B55*N$32","v":{"$error":"#VALUE!"}},{"$f":"+SUMIFS('Detall - Detalle'!$U:$U,'Detall - Detalle'!$S:$S,O$33,'Detall - Detalle'!$Z:$Z,'Pressupost - Pressupuesto'!$A25)+$B55*O$32","v":{"$error":"#VALUE!"}},{"$f":"+SUMIFS('Detall - Detalle'!$U:$U,'Detall - Detalle'!$S:$S,P$33,'Detall - Detalle'!$Z:$Z,'Pressupost - Pressupuesto'!$A25)+$B55*P$32","v":{"$error":"#VALUE!"}},{"$f":"+SUMIFS('Detall - Detalle'!$U:$U,'Detall - Detalle'!$S:$S,Q$33,'Detall - Detalle'!$Z:$Z,'Pressupost - Pressupuesto'!$A25)+$B55*Q$32","v":{"$error":"#VALUE!"}},{"$f":"+SUMIFS('Detall - Detalle'!$U:$U,'Detall - Detalle'!$S:$S,R$33,'Detall - Detalle'!$Z:$Z,'Pressupost - Pressupuesto'!$A25)+$B55*R$32","v":{"$error":"#VALUE!"}},{"$f":"+SUMIFS('Detall - Detalle'!$U:$U,'Detall - Detalle'!$S:$S,S$33,'Detall - Detalle'!$Z:$Z,'Pressupost - Pressupuesto'!$A25)+$B55*S$32","v":{"$error":"#VALUE!"}},{"$f":"+SUMIFS('Detall - Detalle'!$U:$U,'Detall - Detalle'!$S:$S,T$33,'Detall - Detalle'!$Z:$Z,'Pressupost - Pressupuesto'!$A25)+$B55*T$32","v":{"$error":"#VALUE!"}},{"$f":"+SUMIFS('Detall - Detalle'!$U:$U,'Detall - Detalle'!$S:$S,U$33,'Detall - Detalle'!$Z:$Z,'Pressupost - Pressupuesto'!$A25)+$B55*U$32","v":{"$error":"#VALUE!"}},{"$f":"+SUMIFS('Detall - Detalle'!$U:$U,'Detall - Detalle'!$S:$S,V$33,'Detall - Detalle'!$Z:$Z,'Pressupost - Pressupuesto'!$A25)+$B55*V$32","v":{"$error":"#VALUE!"}}]
["TOTAL DESPESES DIRECTES / TOTAL GASTOS DIRECTOS",{"$f":"+B54+B34","v":0},0,{"$error":"#VALUE!"},{"$error":"#VALUE!"},{"$error":"#VALUE!"},{"$error":"#VALUE!"},{"$error":"#VALUE!"},{"$error":"#VALUE!"},{"$error":"#VALUE!"},{"$error":"#VALUE!"},{"$error":"#VALUE!"},{"$error":"#VALUE!"},{"$error":"#VALUE!"},{"$error":"#VALUE!"},{"$error":"#VALUE!"},{"$error":"#VALUE!"},{"$error":"#VALUE!"},{"$error":"#VALUE!"},{"$error":"#VALUE!"},{"$error":"#VALUE!"},{"$error":"#VALUE!"}]
["DESPESES INDIRECTES / GASTOS INDIRECTOS",{"$f":"+SUMIFS('Detall - Detalle'!$U:$U,'Detall - Detalle'!$S:$S,B$33,'Detall - Detalle'!$Z:$Z,'Pressupost - Pressupuesto'!$A27)","v":0},{"$f":"+SUMIFS('Detall - Detalle'!$U:$U,'Detall - Detalle'!$S:$S,C$33,'Detall - Detalle'!$Z:$Z,'Pressupost - Pressupuesto'!$A27)+$B57*C$32","v":0},{"$f":"+SUMIFS('Detall - Detalle'!$U:$U,'Detall - Detalle'!$S:$S,D$33,'Detall - Detalle'!$Z:$Z,'Pressupost - Pressupuesto'!$A27)+$B57*D$32","v":{"$error":"#VALUE!"}},{"$f":"+SUMIFS('Detall - Detalle'!$U:$U,'Detall - Detalle'!$S:$S,E$33,'Detall - Detalle'!$Z:$Z,'Pressupost - Pressupuesto'!$A27)+$B57*E$32","v":{"$error":"#VALUE!"}},{"$f":"+SUMIFS('Detall - Detalle'!$U:$U,'Detall - Detalle'!$S:$S,F$33,'Detall - Detalle'!$Z:$Z,'Pressupost - Pressupuesto'!$A27)+$B57*F$32","v":{"$error":"#VALUE!"}},{"$f":"+SUMIFS('Detall - Detalle'!$U:$U,'Detall - Detalle'!$S:$S,G$33,'Detall - Detalle'!$Z:$Z,'Pressupost - Pressupuesto'!$A27)+$B57*G$32","v":{"$error":"#VALUE!"}},{"$f":"+SUMIFS('Detall - Detalle'!$U:$U,'Detall - Detalle'!$S:$S,H$33,'Detall - Detalle'!$Z:$Z,'Pressupost - Pressupuesto'!$A27)+$B57*H$32","v":{"$error":"#VALUE!"}},{"$f":"+SUMIFS('Detall - Detalle'!$U:$U,'Detall - Detalle'!$S:$S,I$33,'Detall - Detalle'!$Z:$Z,'Pressupost - Pressupuesto'!$A27)+$B57*I$32","v":{"$error":"#VALUE!"}},{"$f":"+SUMIFS('Detall - Detalle'!$U:$U,'Detall - Detalle'!$S:$S,J$33,'Detall - Detalle'!$Z:$Z,'Pressupost - Pressupuesto'!$A27)+$B57*J$32","v":{"$error":"#VALUE!"}},{"$f":"+SUMIFS('Detall - Detalle'!$U:$U,'Detall - Detalle'!$S:$S,K$33,'Detall - Detalle'!$Z:$Z,'Pressupost - Pressupuesto'!$A27)+$B57*K$32","v":{"$error":"#VALUE!"}},{"$f":"+SUMIFS('Detall - Detalle'!$U:$U,'Detall - Detalle'!$S:$S,L$33,'Detall - Detalle'!$Z:$Z,'Pressupost - Pressupuesto'!$A27)+$B57*L$32","v":{"$error":"#VALUE!"}},{"$f":"+SUMIFS('Detall - Detalle'!$U:$U,'Detall - Detalle'!$S:$S,M$33,'Detall - Detalle'!$Z:$Z,'Pressupost - Pressupuesto'!$A27)+$B57*M$32","v":{"$error":"#VALUE!"}},{"$f":"+SUMIFS('Detall - Detalle'!$U:$U,'Detall - Detalle'!$S:$S,N$33,'Detall - Detalle'!$Z:$Z,'Pressupost - Pressupuesto'!$A27)+$B57*N$32","v":{"$error":"#VALUE!"}},{"$f":"+SUMIFS('Detall - Detalle'!$U:$U,'Detall - Detalle'!$S:$S,O$33,'Detall - Detalle'!$Z:$Z,'Pressupost - Pressupuesto'!$A27)+$B57*O$32","v":{"$error":"#VALUE!"}},{"$f":"+SUMIFS('Detall - Detalle'!$U:$U,'Detall - Detalle'!$S:$S,P$33,'Detall - Detalle'!$Z:$Z,'Pressupost - Pressupuesto'!$A27)+$B57*P$32","v":{"$error":"#VALUE!"}},{"$f":"+SUMIFS('Detall - Detalle'!$U:$U,'Detall - Detalle'!$S:$S,Q$33,'Detall - Detalle'!$Z:$Z,'Pressupost - Pressupuesto'!$A27)+$B57*Q$32","v":{"$error":"#VALUE!"}},{"$f":"+SUMIFS('Detall - Detalle'!$U:$U,'Detall - Detalle'!$S:$S,R$33,'Detall - Detalle'!$Z:$Z,'Pressupost - Pressupuesto'!$A27)+$B57*R$32","v":{"$error":"#VALUE!"}},{"$f":"+SUMIFS('Detall - Detalle'!$U:$U,'Detall - Detalle'!$S:$S,S$33,'Detall - Detalle'!$Z:$Z,'Pressupost - Pressupuesto'!$A27)+$B57*S$32","v":{"$error":"#VALUE!"}},{"$f":"+SUMIFS('Detall - Detalle'!$U:$U,'Detall - Detalle'!$S:$S,T$33,'Detall - Detalle'!$Z:$Z,'Pressupost - Pressupuesto'!$A27)+$B57*T$32","v":{"$error":"#VALUE!"}},{"$f":"+SUMIFS('Detall - Detalle'!$U:$U,'Detall - Detalle'!$S:$S,U$33,'Detall - Detalle'!$Z:$Z,'Pressupost - Pressupuesto'!$A27)+$B57*U$32","v":{"$error":"#VALUE!"}},{"$f":"+SUMIFS('Detall - Detalle'!$U:$U,'Detall - Detalle'!$S:$S,V$33,'Detall - Detalle'!$Z:$Z,'Pressupost - Pressupuesto'!$A27)+$B57*V$32","v":{"$error":"#VALUE!"}}]
["TOTAL DESPESES / TOTAL GASTOS",{"$f":"+B57+B56","v":0},{"$f":"+C57+C56","v":0},{"$f":"+D57+D56","v":{"$error":"#VALUE!"}},{"$error":"#VALUE!"},{"$error":"#VALUE!"},{"$error":"#VALUE!"},{"$error":"#VALUE!"},{"$error":"#VALUE!"},{"$error":"#VALUE!"},{"$error":"#VALUE!"},{"$error":"#VALUE!"},{"$error":"#VALUE!"},{"$error":"#VALUE!"},{"$f":"+O57+O56","v":{"$error":"#VALUE!"}},{"$error":"#VALUE!"},{"$error":"#VALUE!"},{"$error":"#VALUE!"},{"$error":"#VALUE!"},{"$error":"#VALUE!"},{"$error":"#VALUE!"},{"$error":"#VALUE!"}]

{"sheet":"Detall - Detalle","index":3,"n_rows":75,"n_cols":30,"rows_kept":75,"cut":false,"hidden":false,"merged":[[1,0,2,2],[4,27,4,29],[4,9,4,14],[4,0,4,8],[4,15,4,23],[4,24,4,26]]}
[]
["Introducció del detall de les despeses de la intervenció / \nIntoducción del detalle de los gastos de la intervención"]
[]
[]
["DADES DE LES DESPESES / DATOS DE LOS GASTOS",null,null,null,null,null,null,null,null,"QUI FINANÇA LES DESPESES? / QUIEN FINANCIA LOS GASTOS?",null,null,null,null,null,"A QUINES ACTIVITATS AFECTA? / A QUE ACTIVIDADES AFECTAN LOS GASTOS?",null,null,null,null,null,null,null,null,"FILTRES / FILTROS",null,null,"AUXILIARS CÀLCULS"]
["ENTITAT QUE EXECUTA LA DESPESA / ENTIDAD EJECUTORA DEL GASTO","SÒCIA LOCAL / SOCIA LOCAL","CONCEPTE PRESSUPOST / CONCEPTO PRESUPUESTO","DETALL DESPESA / DETALLE GASTO","VALORITZACIÓ / VALORIZACIÓN","UNITATS / UNIDADES","QUANTITAT / CANTIDAD","PREU UNITARI / PRECIO UNITARIO","IMPORT / IMPORTE","% ACCD / \n%  ACCD","TOTAL ACCD / TOTAL ACCD","% ALTRES FINANÇADORS / \n% OTROS FINANCIADORES","TOTAL ALTRES FINANÇADORS / TOTAL OTROS FINANCIADORES","% ENTITAT EXECUTORA / \n% ENTIDAD EJECUTORA","TOTAL ENTITAT EXECUTORA / TOTAL ENTIDAD EJECUTORA","NÚM. D'ACTIVITATS AFECTADES / NÚM. ACTIVIDADES AFECTADAS","CHECK","COMPTADOR / CONTADOR","ACTIVITAT / ACTIVIDAD","% IMPUTAT A LA ACTIVITAT / % IMPUTADO A LA ACTIVIDAD","IMPORT ACTIVITAT / IMPORTE ACTIVIDAD","IMPORT ACCD / IMPORTE ACCD","IMPORT ALTRES FINANÇADORS / IMPORTE OTROS FINANCIADORES","IMPORT ENTITAT / IMPORTE ENTIDAD","ENTITAT EXECUTORA / ENTIDAD EJECUTORA","CONCEPTE PRESSUPOST / CONCEPTO PRESSUPUESTO","DETALL DESPESA / DETALLE GASTO","IMPORT","% FINANÇAT ACCD","% IMPUTAT ALTRES FINANÇADORS"]
[null,"",null,null,null,null,null,null,{"$f":"+IF(H7<>\"\",H7*G7,\"\")","v":""},null,{"$f":"+IF(H7<>\"\",J7*I7,\"\")","v":""},null,{"$f":"+IF(H7<>\"\",L7*I7,\"\")","v":""},{"$f":"IF(H7<>\"\",1-J7-L7,\"\")","v":""},{"$f":"+IFERROR(I7-K7-M7,\"\")","v":""},{"$f":"+IF(I7<>\"\",1,\"\")","v":""},{"$f":"IF(P7<>\"\",IF(SUM(OFFSET(V7,0,0,P7,3))=I7,1,0),\"\")","v":""},{"$f":"+IFERROR(IF(P7<>\"\",P7,IF(R6>1,R6-1,\"\")),\"\")","v":""},{"$f":"+IF(P7=1,\"Activitat 1\",\"\")","v":""},{"$f":"+IF(S7=\"Activitat 1\",1,\"\")","v":""},{"$f":"+IFERROR(IF(P7=1,AB7,IF(T7<>\"\",T7*AB7,\"\")),\"\")","v":""},{"$f":"+IFERROR(IF(U7<>\"\",AC7*U7,\"\"),\"\")","v":""},{"$f":"+IFERROR(IF(U7<>\"\",U7*AD7,\"\"),\"\")","v":""},{"$f":"+IFERROR(U7-V7-W7,\"\")","v":""},{"$f":"+IF(R7<>\"\",IF(A7<>\"\",A7,Y6),\"\")","v":""},{"$f":"+IF(R7<>\"\",IF(C7<>\"\",C7,Z6),\"\")","v":""},{"$f":"+IF(R7<>\"\",IF(D7<>\"\",D7,AA6),\"\")","v":""},{"$f":"+IF(R7<>\"\",IF(I7<>\"\",I7,AB6),\"\")","v":""},{"$f":"+IF(R7<>\"\",IF(I7<>\"\",J7,AC6),\"\")","v":""},{"$f":"+IF(R7<>\"\",IF(I7<>\"\",L7,AD6),\"\")","v":""}]
[null,"",null,null,null,null,null,null,{"$f":"+IF(H8<>\"\",H8*G8,\"\")","v":""},null,"",null,{"$f":"+IF(H8<>\"\",L8*I8,\"\")","v":""},{"$f":"IF(H8<>\"\",1-J8-L8,\"\")","v":""},{"$f":"+IFERROR(I8-K8-M8,\"\")","v":""},{"$f":"+IF(I8<>\"\",1,\"\")","v":""},{"$f":"IF(P8<>\"\",IF(SUM(OFFSET(V8,0,0,P8,3))=I8,1,0),\"\")","v":""},{"$f":"+IFERROR(IF(P8<>\"\",P8,IF(#REF!>1,#REF!-1,\"\")),\"\")","v":""},{"$f":"+IF(P8=1,\"Activitat 1\",\"\")","v":""},{"$f":"+IF(S8=\"Activitat 1\",1,\"\")","v":""},{"$f":"+IFERROR(IF(P8=1,AB8,IF(T8<>\"\",T8*AB8,\"\")),\"\")","v":""},{"$f":"+IFERROR(IF(U8<>\"\",AC8*U8,\"\"),\"\")","v":""},{"$f":"+IFERROR(IF(U8<>\"\",U8*AD8,\"\"),\"\")","v":""},{"$f":"+IFERROR(U8-V8-W8,\"\")","v":""},{"$f":"+IF(R8<>\"\",IF(A8<>\"\",A8,#REF!),\"\")","v":""},{"$f":"+IF(R8<>\"\",IF(C8<>\"\",C8,Z7),\"\")","v":""},{"$f":"+IF(R8<>\"\",IF(D8<>\"\",D8,AA7),\"\")","v":""},{"$f":"+IF(R8<>\"\",IF(I8<>\"\",I8,AB7),\"\")","v":""},{"$f":"+IF(R8<>\"\",IF(I8<>\"\",J8,AC7),\"\")","v":""},{"$f":"+IF(R8<>\"\",IF(I8<>\"\",L8,AD7),\"\")","v":""}]
[null,"",null,null,null,null,null,null,"",null,"",null,"","","","","",{"$f":"+IFERROR(IF(P9<>\"\",P9,IF(R8>1,R8-1,\"\")),\"\")","v":""},{"$f":"+IF(P9=1,\"Activitat 1\",\"\")","v":""},"","","","","","","","",{"$f":"+IF(R9<>\"\",IF(I9<>\"\",I9,AB8),\"\")","v":""},{"$f":"+IF(R9<>\"\",IF(I9<>\"\",J9,AC8),\"\")","v":""},{"$f":"+IF(R9<>\"\",IF(I9<>\"\",L9,AD8),\"\")","v":""}]
[null,"",null,null,null,null,null,null,"",null,"",null,"","","","","","","","","","","","","","","","","",""]
[null,"",null,null,null,null,null,null,"",null,"",null,"","","","","","","","","","","","","","","","","",""]
[null,"",null,null,null,null,null,null,"",null,"",null,"","","","","","","","","","","","","","","","","",""]
[null,"",null,null,null,null,null,null,"",null,"",null,"","","","","","","","","","","","","","","","","",""]
[null,"",null,null,null,null,null,null,"",null,"",null,"","","","","","","","","","","","","","","","","",""]
[null,"",null,null,null,null,null,null,"",null,"",null,"","","","","","","","","","","","","","","","","",""]
[null,"",null,null,null,null,null,null,"",null,"",null,"","","","","","","","","","","","","","","","","",""]
[null,"",null,null,null,null,null,null,"",null,"",null,"","","","","","","","","","","","","","","","","",""]
[null,"",null,null,null,null,null,null,"",null,"",null,"","","","","","","","","","","","","","","","","",""]
[null,"",null,null,null,null,null,null,"",null,"",null,"","","","","","","","","","","","","","","","","",""]
[null,"",null,null,null,null,null,null,"",null,"",null,"","","","","","","","","","","","","","","","","",""]
[null,"",null,null,null,null,null,null,"",null,"",null,"","","","","","","","","","","","","","","","","",""]
[null,"",null,null,null,null,null,null,"",null,"",null,"","","","","","","","","","","","","","","","","",""]
[null,"",null,null,null,null,null,null,"",null,"",null,"","","","","","","","","","","","","","","","","",""]
[null,"",null,null,null,null,null,null,"",null,"",null,"","","","","","","","","","","","","","","","","",""]
[null,"",null,null,null,null,null,null,"",null,"",null,"","","","","","","","","","","","","","","","","",""]
[null,"",null,null,null,null,null,null,"",null,"",null,"","","","","","","","","","","","","","","","","",""]
[null,"",null,null,null,null,null,null,"",null,"",null,"","","","","","","","","","","","","","","","","",""]
[null,"",null,null,null,null,null,null,"",null,"",null,"","","","","","","","","","","","","","","","","",""]
[null,"",null,null,null,null,null,null,"",null,"",null,"","","","","","","","","","","","","","","","","",""]
[null,"",null,null,null,null,null,null,"",null,"",null,"","","","","","","","","","","","","","","","","",""]
[null,"",null,null,null,null,null,null,"",null,"",null,"","","","","","","","","","","","","","","","",{"$f":"+IF(R31<>\"\",IF(I31<>\"\",J30,AC30),\"\")","v":""},""]
[null,"",null,null,null,null,null,null,"",null,"",null,"","","","","","","","","","","","","","","","","",""]
[null,"",null,null,null,null,null,null,"",null,"",null,"","","","","","","","","","","","","","","","","",""]
[null,"",null,null,null,null,null,null,"",null,"",null,"","","","","","","","","","","","","",{"$f":"+IF(R34<>\"\",IF(C34<>\"\",C34,Z33),\"\")","v":""},{"$f":"+IF(R34<>\"\",IF(D34<>\"\",D34,AA33),\"\")","v":""},{"$f":"+IF(R34<>\"\",IF(I34<>\"\",I34,AB33),\"\")","v":""},"",{"$f":"+IF(R34<>\"\",IF(I34<>\"\",L34,AD33),\"\")","v":""}]
[null,"",null,null,null,null,null,null,"",null,"",null,"","","","","","","","","","","","","","","","","",""]
[null,"",null,null,null,null,null,null,"",null,"",null,"","","","","","","","","","","","","","","","","",""]
[null,"",null,null,null,null,null,null,"",null,"",null,"","","","","","","","","","","","",{"$f":"+IF(R37<>\"\",IF(A37<>\"\",A37,Y36),\"\")","v":""},{"$f":"+IF(R37<>\"\",IF(C37<>\"\",C37,Z36),\"\")","v":""},{"$f":"+IF(R37<>\"\",IF(D37<>\"\",D37,AA36),\"\")","v":""},"","",""]
[null,"",null,null,null,null,null,null,"",null,"",null,"","","","","","","","","","","","","","","","","",""]
[null,"",null,null,null,null,null,null,"",null,"",null,"","","","","","","","","","","","","","","","","",""]
[null,"",null,null,null,null,null,null,"",null,"",null,"","","","","","","","","","","","","","","","","",""]
[null,"",null,null,null,null,null,null,"",null,"",null,"","","","","","","","","","","","","","","","","",""]
[null,"",null,null,null,null,null,null,"",null,"",null,"","","","","","","","","","","","","","","","","",""]
[null,"",null,null,null,null,null,null,"",null,"",null,"","","","","","","","","","","","","","","","","",""]
[null,"",null,null,null,null,null,null,"",null,"",null,"","","","","","","","","","","","","","","","","",""]
[null,"",null,null,null,null,null,null,"",null,"",null,"","","","","","","","","","","","","","","","","",""]
[null,"",null,null,null,null,null,null,"",null,"",null,"","","","","","","","","","","","","","","","","",""]
[null,"",null,null,null,null,null,null,"",null,"",null,"","","","","","","","","","","","","",{"$f":"+IF(R47<>\"\",IF(C47<>\"\",C47,Z46),\"\")","v":""},{"$f":"+IF(R47<>\"\",IF(D47<>\"\",D47,AA46),\"\")","v":""},{"$f":"+IF(R47<>\"\",IF(I47<>\"\",I47,AB46),\"\")","v":""},"",{"$f":"+IF(R47<>\"\",IF(I47<>\"\",L47,AD46),\"\")","v":""}]
[null,"",null,null,null,null,null,null,"",null,"",null,"","","","","","","","","","","","","","","","","",""]
[null,"",null,null,null,null,null,null,"",null,"",null,"","","","","","","","","","","","","","","","","",""]
[null,"",null,null,null,null,null,null,"",null,"",null,"","","","","","","","","","","","","","","","","",""]
[null,"",null,null,null,null,null,null,"",null,"",null,"","","","","","","","","","","","","","","","","",""]
[null,"",null,null,null,null,null,null,"",null,"",null,"","","","","","","","","","","","","","","","","",""]
[null,"",null,null,null,null,null,null,"",null,"",null,"","","","","","","","","","","","","","","","","",""]
[null,"",null,null,null,null,null,null,"",null,"",null,"","","","","","","","","","","","","","","","","",""]
[null,"",null,null,null,null,null,null,"",null,"",null,"","","","","","","","","","","","","","","","","",""]
[null,"",null,null,null,null,null,null,"",null,"",null,"","","","","","","","","","","","","","","","","",""]
[null,"",null,null,null,null,null,null,"",null,"",null,"","","","","","","","","","","","","","","","","",""]
[null,"",null,null,null,null,null,null,"",null,"",null,"","","","","","","","","","","","","","","","","",""]
[null,"",null,null,null,null,null,null,"",null,"",null,"","","","","","","","","","","","","","","","","",""]
[null,"",null,null,null,null,null,null,"",null,"",null,"","","","","","","","","","","","","","","","","",""]
[null,"",null,null,null,null,null,null,"",null,"",null,"","","","","","","","","","","","","","","","","",""]
[null,"",null,null,null,null,null,null,"",null,"",null,"","","","","","","","","","","","","","","","","",""]
[null,"",null,null,null,null,null,null,"",null,"",null,"","","","","","","","","","","","","","","","","",""]
[null,"",null,null,null,null,null,null,"",null,"",null,"","","","","","","","","","","","","","","","","",""]
[null,"",null,null,null,null,null,null,{"$f":"+IF(H65<>\"\",H65*G65,\"\")","v":""},null,{"$f":"+IF(H65<>\"\",J65*I65,\"\")","v":""},null,{"$f":"+IF(H65<>\"\",L65*I65,\"\")","v":""},{"$f":"IF(H65<>\"\",1-J65-L65,\"\")","v":""},{"$f":"+IFERROR(I65-K65-M65,\"\")","v":""},"",{"$f":"IF(P65<>\"\",IF(SUM(OFFSET(V65,0,0,P65,3))=I65,1,0),\"\")","v":""},"","","",{"$f":"+IFERROR(IF(P65=1,AB65,IF(T65<>\"\",T65*AB65,\"\")),\"\")","v":""},"","","","",{"$f":"+IF(R65<>\"\",IF(C65<>\"\",C65,Z64),\"\")","v":""},{"$f":"+IF(R65<>\"\",IF(D65<>\"\",D65,AA64),\"\")","v":""},{"$f":"+IF(R65<>\"\",IF(I65<>\"\",I65,AB64),\"\")","v":""},{"$f":"+IF(R65<>\"\",IF(I65<>\"\",J64,AC64),\"\")","v":""},{"$f":"+IF(R65<>\"\",IF(I65<>\"\",L65,AD64),\"\")","v":""}]
[null,"",null,null,null,null,null,null,"",null,"",null,"","","","","","","","","","","","","",{"$f":"+IF(R66<>\"\",IF(C66<>\"\",C66,Z65),\"\")","v":""},{"$f":"+IF(R66<>\"\",IF(D66<>\"\",D66,AA65),\"\")","v":""},{"$f":"+IF(R66<>\"\",IF(I66<>\"\",I66,AB65),\"\")","v":""},{"$f":"+IF(R66<>\"\",IF(I66<>\"\",J65,AC65),\"\")","v":""},{"$f":"+IF(R66<>\"\",IF(I66<>\"\",L66,AD65),\"\")","v":""}]
[null,"",null,null,null,null,null,null,"",null,"",null,"","","","","","","","","","","","","","","","","",""]
[null,"",null,null,null,null,null,null,"",null,"",null,"","","","","","","","","","","","","","","","","",""]
[null,"",null,null,null,null,null,null,"",null,"",null,"","","","","","","","","","","","",{"$f":"+IF(R69<>\"\",IF(A69<>\"\",A69,Y68),\"\")","v":""},{"$f":"+IF(R69<>\"\",IF(C69<>\"\",C69,Z68),\"\")","v":""},{"$f":"+IF(R69<>\"\",IF(D69<>\"\",D69,AA68),\"\")","v":""},{"$f":"+IF(R69<>\"\",IF(I69<>\"\",I69,AB68),\"\")","v":""},{"$f":"+IF(R69<>\"\",IF(I69<>\"\",J69,AC68),\"\")","v":""},{"$f":"+IF(R69<>\"\",IF(I69<>\"\",L69,AD68),\"\")","v":""}]
[null,"",null,null,null,null,null,null,"",null,"",null,"","","","","","","","","",{"$f":"+IFERROR(IF(U70<>\"\",AC70*U70,\"\"),\"\")","v":""},{"$f":"+IFERROR(IF(U70<>\"\",U70*AD70,\"\"),\"\")","v":""},{"$f":"+IFERROR(U70-V70-W70,\"\")","v":""},"","","","","",""]
[null,"",null,null,null,null,null,null,"",null,"",null,"","","",{"$f":"+IF(I71<>\"\",1,\"\")","v":""},"","",{"$f":"+IF(P71=1,\"Activitat 1\",\"\")","v":""},{"$f":"+IF(S71=\"Activitat 1\",1,\"\")","v":""},"","","","","","","","","",""]
[null,"",null,null,null,null,null,null,"",null,"",null,"","","","","",{"$f":"+IFERROR(IF(P72<>\"\",P72,IF(R71>1,R71-1,\"\")),\"\")","v":""},"","","","","","","","","","","",""]
[null,"",null,null,null,null,null,null,"",null,"",null,"","","",{"$f":"+IF(I73<>\"\",1,\"\")","v":""},"","",{"$f":"+IF(P73=1,\"Activitat 1\",\"\")","v":""},{"$f":"+IF(S73=\"Activitat 1\",1,\"\")","v":""},"","","","","","","","","",""]
[null,"",null,null,null,null,null,null,"",null,"",null,"","","",{"$f":"+IF(I74<>\"\",1,\"\")","v":""},"","",{"$f":"+IF(P74=1,\"Activitat 1\",\"\")","v":""},{"$f":"+IF(S74=\"Activitat 1\",1,\"\")","v":""},"","","","","","","","","",""]
[null,null,null,null,null,null,null,null,null,null,null,null,null,null,null,null,null,null,{"$f":"+IF(P75=1,\"Activitat 1\",\"\")","v":""},null,null,null,null,null,null,{"$f":"+IF(R75<>\"\",IF(C75<>\"\",C75,Z74),\"\")","v":""},{"$f":"+IF(R75<>\"\",IF(D75<>\"\",D75,AA74),\"\")","v":""},{"$f":"+IF(R75<>\"\",IF(I75<>\"\",I75,AB74),\"\")","v":""},{"$f":"+IF(R75<>\"\",IF(I75<>\"\",J75,AC74),\"\")","v":""},{"$f":"+IF(R75<>\"\",IF(I75<>\"\",L75,AD74),\"\")","v":""}]

{"sheet":"Llista desplegable","index":4,"n_rows":49,"n_cols":9,"rows_kept":49,"cut":false,"hidden":true,"merged":[]}
["Partida pressupostària ",null,"Executor del projecte/finançador",null,"Valorització",null,"Unitats",null,"Tipus_projecte"]
["a1. Remuneració  personal assalariat / Remuneración personal asalariado",null,"Beneficiària",null,"Sí",null,"Hores",null,"Desenvolupament"]
["a1.1 Personal assalariat local / Personal asalariado local",null,"Sòcia_local",null,null,null,"Dies",null,"Educació global"]
["a1.2 Personal assalariat expatriat / Personal asalariado expatriado",null,null,null,null,null,"Mesos"]
["a1.3 Personal assalariat a Catalunya / Personal asalariado Cataluña",null,null,null,null,null,"Anys"]
["a2 Lloguers / Alquileres",null,null,null,null,null,"Unitats"]
["a3 Manteniment, conservació i reparació / Mantenimiento, conservación y reparación",null,null,null,null,null,"Servei"]
["a4 Material ordinari / Material ordinario",null,null,null,null,null,"Litres"]
["a5 Comunicacions, despeses postals i missatgeria / Comunicaciones, gastos postales y mensajería",null,"Soci local",null,null,null,"Kit"]
["a6 Reunions, conferències i formacions / Reuniones, conferencias y formaciones",null,{"$f":"IF(+'Dades i com... - Datos y com...'!D21<>\"\",'Dades i com... - Datos y com...'!D21,\"\")","v":""},null,null,null,"Lot"]
["a7 Publicitat i difusió / Publicidad y difusión",null,{"$f":"IF(+'Dades i com... - Datos y com...'!D22<>\"\",'Dades i com... - Datos y com...'!D22,\"\")","v":""},null,null,null,"Forfait"]
["a8 Publicacions / Publicaciones",null,{"$f":"IF(+'Dades i com... - Datos y com...'!D23<>\"\",'Dades i com... - Datos y com...'!D23,\"\")","v":""}]
["a9 Treballs tècnics i professionals / Trabajos técnicos y profesionales"]
["a10 Identificació i formulació / Identificación y formulación"]
["a11 Avaluació / Evaluación"]
["a12 Dietes, locomoció, trasllats i allotjaments / Dietas, locomoción, traslados y alojamientos"]
["a13 Informe auditor / Informe de auditor"]
["a14 Despeses financeres / Gastos financieros"]
["a15 Despeses de suport legal / Gastos de soporte legal"]
["a16 Imprevistos / Imprevistos"]
["b1 Béns inventariables / Bienes inventariables"]
["DESPESES INDIRECTES (Cap IV) / GASTOS INDIRECTOS (Cap IV)"]
[]
[]
[]
["Responable del projecte/finançador"]
["BENEFICIARIA"]
[]
[]
[]
[]
[]
[]
[]
[]
[]
[]
[]
[]
[]
[]
[]
[]
[]
[]
["Activitats"]
["Elaboració de Podcasts"]
["Dossier ISBN"]
["Escola"]